COST_CENTRE,COST_CENTRE_DESCRIPTION,SERVICE,DIRECTORATE,SUBJECTIVE,SUBJECTIVE_DESCRIPTION,SUPPLIER_NAME,DESCRIPTION,VOUCHER_NUM,PAYMENT_DATE,LINE_AMOUNT,NET_PAID_AMOUNT,PAID_AMOUNT
600001,Corporate Properties,Natural Resources and Assets,Infrastructure and Planning,45105,Telephone Usage,The Phone Co-Op Ltd,phone charges,2204683 , 10/04/2018,49.25,"1,485.05","1,782.06"
600001,Corporate Properties,Natural Resources and Assets,Infrastructure and Planning,22001,Heating Oil,Sibleys Fuel & Marine Services,Town Hall- Heating oil for 2018,2235980 , 21/06/2018,747.13,"3,606.43","3,947.54"
600001,Corporate Properties,Natural Resources and Assets,Infrastructure and Planning,21101,R&M - Buildings - Planned,One Off Payments,Annual re-test and recertification of Sports Hall and Five Island School Roof Safety,2204793 , 12/04/2018,"1,440.00","1,440.00","1,728.00"
600001,Corporate Properties,Natural Resources and Assets,Infrastructure and Planning,21101,R&M - Buildings - Planned,One Off Payments,LABOUR WORK ON TOWN HALL REFURB LABOUR DATA CABLING MEMORY CAFE,2207695 , 17/04/2018,531.00,621.00,621.00
600001,Corporate Properties,Natural Resources and Assets,Infrastructure and Planning,21101,R&M - Buildings - Planned,One Off Payments,LABOUR WORK ON TOWN HALL REFURB LABOUR DATA CABLING MEMORY CAFE,2207695 , 17/04/2018,90.00,621.00,621.00
600001,Corporate Properties,Natural Resources and Assets,Infrastructure and Planning,46118,Freight Costs,Isles Of Scilly Steamship Co,Freight delivery for CORP PROPERTY,2210919 , 24/04/2018,34.51,"2,913.30","3,495.99"
600001,Corporate Properties,Natural Resources and Assets,Infrastructure and Planning,21124,R&M - Planned Fire equip servicing,Fire Crest Fire Protection,50% for installation of alarm system at Weslyan Chapel,2194530 , 05/04/2018,"3,398.50","3,398.50","4,078.20"
600001,Corporate Properties,Natural Resources and Assets,Infrastructure and Planning,21110,R&M - Electrical - Planned,Edmundson Electrical Ltd,Electrical goods,2231799 , 15/05/2018,806.10,806.10,967.32
600001,Corporate Properties,Natural Resources and Assets,Infrastructure and Planning,21110,R&M - Electrical - Planned,Edmundson Electrical Ltd,Electrical goods,2231795 , 15/05/2018,"1,548.59","1,548.59","1,858.31"
600001,Corporate Properties,Natural Resources and Assets,Infrastructure and Planning,49369,Pest Control,Cornwall Council,Pest Control Treatment,2209078 , 19/04/2018,750.00,750.00,900.00
600002,Public Conveniences,Natural Resources and Assets,Infrastructure and Planning,41304,Cleaning & Domestic Materials,The Consortium,Cleaning Stuff for 2018,2270209 , 28/06/2018,"1,514.58","1,514.58","1,817.50"
600002,Public Conveniences,Natural Resources and Assets,Infrastructure and Planning,27001,Contract Cleaning,Redacted - personal information,Cleaning of St Agnes Toilets,2262117 , 19/06/2018,796.25,796.25,796.25
600002,Public Conveniences,Natural Resources and Assets,Infrastructure and Planning,27001,Contract Cleaning,Redacted - personal information,Cleaning the public toilets on St Agnes in April 2018,2246799 , 05/06/2018,796.25,796.25,796.25
600002,Public Conveniences,Natural Resources and Assets,Infrastructure and Planning,27001,Contract Cleaning,Redacted - personal information,Cleaning the Public Toilets,2221880 , 03/05/2018,796.25,796.25,796.25
600002,Public Conveniences,Natural Resources and Assets,Infrastructure and Planning,46118,Freight Costs,Isles Of Scilly Steamship Co,Freight Delivery for P CONS,2210919 , 24/04/2018,2.27,"2,913.30","3,495.99"
600002,Public Conveniences,Natural Resources and Assets,Infrastructure and Planning,46118,Freight Costs,Isles Of Scilly Steamship Co,April Invoice for Steamship Company,2236015 , 22/05/2018,2.27,"2,949.69","3,539.63"
600002,Public Conveniences,Natural Resources and Assets,Infrastructure and Planning,46118,Freight Costs,Isles Of Scilly Steamship Co,Feb invoice from Steamship Group,2236005 , 22/05/2018,282.74,"4,799.03","5,758.86"
600003,Commercial Property,Natural Resources and Assets,Infrastructure and Planning,45105,Telephone Usage,The Phone Co-Op Ltd,phone charges,2204683 , 10/04/2018,0.02,"1,485.05","1,782.06"
600003,Commercial Property,Natural Resources and Assets,Infrastructure and Planning,49002,Miscellaneous Expenditure,P & P Lifts Ltd,Annual lift servicing contract for IOS Council sites - Park House/Library,2205284 , 12/04/2018,"1,040.00","1,040.00","1,248.00"
600003,Commercial Property,Natural Resources and Assets,Infrastructure and Planning,49002,Miscellaneous Expenditure,P & P Lifts Ltd,Park House Call out attended as requested on 27th Feb 2018,2205286 , 12/04/2018,592.50,592.50,711.00
600003,Commercial Property,Natural Resources and Assets,Infrastructure and Planning,22002,Electricity,Edf Energy Plc,1/2/18 - 28/2/18,2206039 , 13/04/2018,502.51,502.51,603.02
600003,Commercial Property,Natural Resources and Assets,Infrastructure and Planning,49002,Miscellaneous Expenditure,CTI Communications Ltd,CTI Phone support at PEC Isles of Scilly,2250203 , 05/06/2018,806.00,806.00,967.20
600004,Coast & Flood Protection,Natural Resources and Assets,Infrastructure and Planning,49002,Miscellaneous Expenditure,Milestone Environmental Limited,Lwr Moors Hydrological Study,2225280 , 08/05/2018,850.00,850.00,"1,020.00"
600004,Coast & Flood Protection,Natural Resources and Assets,Infrastructure and Planning,47001,Grants & Conts to Other Bodies - Non Discretionary,Environment Agency,FCERM Local Levy SWRFCC,2212350 , 01/05/2018,"2,543.00","2,543.00","2,543.00"
600005,AONB,Natural Resources and Assets,Infrastructure and Planning,47002,Subscriptions,NAAONB,NAAONB Subscriptions 2018-19,2225412 , 08/05/2018,"2,568.00","2,568.00","2,568.00"
600005,AONB,Natural Resources and Assets,Infrastructure and Planning,49002,Miscellaneous Expenditure,Ios Wildlife Trust Ltd,Grant in Aid Payment to IoS WLT,2249334 , 05/06/2018,"116,270.00","116,270.00","116,270.00"
600005,AONB,Natural Resources and Assets,Infrastructure and Planning,49002,Miscellaneous Expenditure,DTA Ecology Ltd,HRA training,2266146 , 26/06/2018,"2,305.00","2,305.00","2,766.00"
600005,AONB,Natural Resources and Assets,Infrastructure and Planning,49002,Miscellaneous Expenditure,Cornwall Development Company Ltd Jobline Staffing,Agritech-Cornwall annual contribution,2267116 , 26/06/2018,"5,000.00","5,000.00","5,000.00"
600010,Operational R & M Services,Operational Services,Infrastructure and Planning,31505,Boat Hire,Tresco Estate,Tresco Boating for Operational Services Engineering Department,2231195 , 17/05/2018,53.00,502.00,502.00
600010,Operational R & M Services,Operational Services,Infrastructure and Planning,45105,Telephone Usage,The Phone Co-Op Ltd,phone charges,2204683 , 10/04/2018,41.00,"1,485.05","1,782.06"
600010,Operational R & M Services,Operational Services,Infrastructure and Planning,31204,Derv Purchases,Sibleys Fuel & Marine Services,Fuel for Repair & Maintenance for 12 months - April 18 - March 19 inc,2235980 , 21/06/2018,59.91,"3,606.43","3,947.54"
600010,Operational R & M Services,Operational Services,Infrastructure and Planning,22001,Heating Oil,Sibleys Fuel & Marine Services,HEATING OIL,2191589 , 05/04/2018,"1,150.00","5,417.46","5,860.83"
600010,Operational R & M Services,Operational Services,Infrastructure and Planning,22004,Solid Fuel,Sibleys Fuel & Marine Services,SOLID FUEL,2191589 , 05/04/2018,"4,267.46","5,417.46","5,860.83"
600010,Operational R & M Services,Operational Services,Infrastructure and Planning,46118,Freight Costs,Isles Of Scilly Steamship Co,Freight Delivery for OPS,2210919 , 24/04/2018,24.25,"2,913.30","3,495.99"
600010,Operational R & M Services,Operational Services,Infrastructure and Planning,46118,Freight Costs,Isles Of Scilly Steamship Co,April Invoice for Steamship Company,2236015 , 22/05/2018,466.74,"2,949.69","3,539.63"
600010,Operational R & M Services,Operational Services,Infrastructure and Planning,46118,Freight Costs,Isles Of Scilly Steamship Co,Feb invoice from Steamship Group,2236005 , 22/05/2018,226.60,"4,799.03","5,758.86"
600010,Operational R & M Services,Operational Services,Infrastructure and Planning,46119,Haulage Costs,Island Carriers,Haulage Fee,2209169 , 19/04/2018,"2,544.06","2,544.06","3,052.89"
600010,Operational R & M Services,Operational Services,Infrastructure and Planning,49002,Miscellaneous Expenditure,Blue Machinery (Spares) Ltd,Hydraulic Motor,2235795 , 22/05/2018,917.69,917.69,"1,101.23"
600012,Highways,Operational Services,Infrastructure and Planning,Redacted,Redacted - personal information,Redacted - personal information,Redacted - personal information,2195729 , 12/04/2018,"1,507.35","1,507.35","1,507.35"
600012,Highways,Operational Services,Infrastructure and Planning,41302,Materials,Instarmac Group Plc,Equipment,2191550 , 05/04/2018,"1,129.68","1,129.68","1,355.62"
600012,Highways,Operational Services,Infrastructure and Planning,22002,Electricity,Edf Energy Plc,"Unmetered Supply, Street Lighting and Public Conveniences UM5 1SS",2261704 , 19/06/2018,518.32,519.79,623.45
600012,Highways,Operational Services,Infrastructure and Planning,22002,Electricity,Edf Energy Plc,"Unmetered Supply, Street Lighting and Public Conveniences UM5 1SS",2261704 , 19/06/2018,1.47,519.79,623.45
600020,Building Control,Planning and Development,Infrastructure and Planning,31505,Boat Hire,Tresco Estate,Jet boat 12.15 from St Mary's and Return,2254413 , 12/06/2018,"-4,249.00","4,249.00","4,249.00"
600020,Building Control,Planning and Development,Infrastructure and Planning,31505,Boat Hire,Tresco Estate,Jet boat 12.15 from St Mary's and Return,2254413 , 12/06/2018,"4,249.00","4,249.00","4,249.00"
600020,Building Control,Planning and Development,Infrastructure and Planning,31505,Boat Hire,Tresco Estate,Jet boat 12.15 from St Mary's and Return,2208977 , 24/04/2018,57.50,"3,055.90","3,055.90"
600020,Building Control,Planning and Development,Infrastructure and Planning,43532,Professional Fees - Other,Cornwall Council,"Provision of Building Control Services Period 1st January - 31st
March 2018",2213550 , 10/05/2018,"3,350.00","3,350.00","4,020.00"
600021,Development Management,Planning and Development,Infrastructure and Planning,45208,IT Software Support,Idox Software Ltd,Full review and scope of data transfer work ahead of a potential transition of Uniform data to a Cornwall Council hosted system. Leading to a full proposal of work.,2225355 , 29/05/2018,634.60,"1,900.00","2,280.00"
600021,Development Management,Planning and Development,Infrastructure and Planning,45217,Annual Licence Software Fees,Idox Software Ltd,"6 month extension to IDOX Uniform Hosting 01.04.18 to 30.09.18 (includes Spatially Enabled, Uniform Capital Maintenance & Trading Standards Module Maintenance.",2194930 , 19/04/2018,"1,549.74","3,099.47","3,719.36"
600021,Development Management,Planning and Development,Infrastructure and Planning,45217,Annual Licence Software Fees,Idox Software Ltd,3 x Additional licenses for IDOX Uniform system to enable CC access for a 6 month period during migration scoping.,2229236 , 29/05/2018,562.50,"1,125.00","1,350.00"
600022,Strategic Planning,Planning and Development,Infrastructure and Planning,43505,Consultants - Other,Understanding Data Ltd,SHMA updates for Local Plan,2254153 , 07/06/2018,"2,500.00","2,500.00","2,500.00"
600022,Strategic Planning,Planning and Development,Infrastructure and Planning,31505,Boat Hire,Tresco Estate,"Trip to St Martins 6th
Bryher 9th
Tresco 10th",2231195 , 17/05/2018,115.00,502.00,502.00
600022,Strategic Planning,Planning and Development,Infrastructure and Planning,31505,Boat Hire,Tresco Estate,"Trip to St Martins 6th
Bryher 9th
Tresco 10th",2231195 , 17/05/2018,158.00,502.00,502.00
600022,Strategic Planning,Planning and Development,Infrastructure and Planning,89207,Consultancy Costs,Three Dragons (LC) Ltd,Housing Viability Testing for the Draft Local Plan,2230020 , 15/05/2018,"15,613.00","15,613.00","18,735.60"
600022,Strategic Planning,Planning and Development,Infrastructure and Planning,89207,Consultancy Costs,Enfusion Ltd,Sustainability Assessment (including Habitat Regulations Assessment and Equality Impact Assessment) for the Draft Local Plan,2191737 , 05/04/2018,"4,180.00","4,180.00","5,016.00"
600022,Strategic Planning,Planning and Development,Infrastructure and Planning,89207,Consultancy Costs,Cornwall Council,Archaeological Consultancy Services (2 year contract from a grant from Historic England),2193512 , 05/04/2018,"10,055.50","10,055.50","12,066.60"
600030,Fire & Rescue,Fire and Rescue,Infrastructure and Planning,31603,Other Public Transport,Tresco Estate,Firecrew Boat Taxis,2197950 , 17/04/2018,565.00,565.00,565.00
600030,Fire & Rescue,Fire and Rescue,Infrastructure and Planning,31603,Other Public Transport,Tresco Estate,TRESCO FIREFIGHTERS BOATS,2191797 , 05/04/2018,942.50,942.50,942.50
600030,Fire & Rescue,Fire and Rescue,Infrastructure and Planning,41310,Delivery Charges,Total Workwear,DELIVERY,2250050 , 05/06/2018,13.67,544.30,653.17
600030,Fire & Rescue,Fire and Rescue,Infrastructure and Planning,42503,Uniforms / Clothing,Total Workwear,UNIFORMS,2250050 , 05/06/2018,530.63,544.30,653.17
600030,Fire & Rescue,Fire and Rescue,Infrastructure and Planning,45102,Pagers,Multitone Electronics Plc,VHF PAGERS,2217849 , 01/05/2018,765.00,765.00,918.00
600030,Fire & Rescue,Fire and Rescue,Infrastructure and Planning,46118,Freight Costs,Isles Of Scilly Steamship Co,Freight Delivery for FIRE,2210919 , 24/04/2018,2.27,"2,913.30","3,495.99"
600030,Fire & Rescue,Fire and Rescue,Infrastructure and Planning,21110,R&M - Electrical - Planned,Gylly Computer Services Ltd,Electrical Service (airport),2263191 , 19/06/2018,700.00,700.00,840.00
600030,Fire & Rescue,Fire and Rescue,Infrastructure and Planning,21101,R&M - Buildings - Planned,Cornwall Council,Air Purity Checks,2207437 , 10/05/2018,539.04,539.04,646.85
600040,Waste Collection and Operations,Waste and Recycling,Infrastructure and Planning,27006,Skip Costs,Wheal Alfred Metals Recycling Ltd,Skip Rental,2191600 , 05/04/2018,"1,600.00","1,600.00","1,920.00"
600040,Waste Collection and Operations,Waste and Recycling,Infrastructure and Planning,41104,Equipment & Plant - Direct Purchase,Viridor Waste Management Ltd,COMPACTOR SKIPS,2191860 , 05/04/2018,"16,960.00","16,960.00","20,352.00"
600040,Waste Collection and Operations,Waste and Recycling,Infrastructure and Planning,41104,Equipment & Plant - Direct Purchase,Viridor Waste Management Ltd,PACKER SKIPS,2191867 , 05/04/2018,"16,913.54","16,913.54","20,296.22"
600040,Waste Collection and Operations,Waste and Recycling,Infrastructure and Planning,49002,Miscellaneous Expenditure,Sibleys Fuel & Marine Services,Fuel from Sibleys for Waste collection vehicles only,2235980 , 21/06/2018,198.39,"3,606.43","3,947.54"
600040,Waste Collection and Operations,Waste and Recycling,Infrastructure and Planning,49002,Miscellaneous Expenditure,Sibleys Fuel & Marine Services,Fuel from Sibleys for Waste collection vehicles only,2235980 , 21/06/2018,-166.82,"3,606.43","3,947.54"
600040,Waste Collection and Operations,Waste and Recycling,Infrastructure and Planning,49002,Miscellaneous Expenditure,Sibleys Fuel & Marine Services,Fuel from Sibleys for Waste collection vehicles only,2235980 , 21/06/2018,166.82,"3,606.43","3,947.54"
600040,Waste Collection and Operations,Waste and Recycling,Infrastructure and Planning,49002,Miscellaneous Expenditure,Sibleys Fuel & Marine Services,Fuel for waste site vehicles,2235980 , 21/06/2018,99.00,"3,606.43","3,947.54"
600040,Waste Collection and Operations,Waste and Recycling,Infrastructure and Planning,49002,Miscellaneous Expenditure,Sibleys Fuel & Marine Services,Fuel from Sibleys for Waste collection vehicles only,2235980 , 21/06/2018,78.54,"3,606.43","3,947.54"
600040,Waste Collection and Operations,Waste and Recycling,Infrastructure and Planning,49002,Miscellaneous Expenditure,Sibleys Fuel & Marine Services,Fuel from Sibleys for Waste collection vehicles only,2235980 , 21/06/2018,14.15,"3,606.43","3,947.54"
600040,Waste Collection and Operations,Waste and Recycling,Infrastructure and Planning,49002,Miscellaneous Expenditure,Sibleys Fuel & Marine Services,Fuel from Sibleys for Waste collection vehicles only,2257361 , 26/06/2018,501.34,"4,586.28","4,989.71"
600040,Waste Collection and Operations,Waste and Recycling,Infrastructure and Planning,49002,Miscellaneous Expenditure,Sibleys Fuel & Marine Services,Fuel for waste site vehicles,2257361 , 26/06/2018,886.82,"4,586.28","4,989.71"
600040,Waste Collection and Operations,Waste and Recycling,Infrastructure and Planning,49002,Miscellaneous Expenditure,Sibleys Fuel & Marine Services,Fuel from Sibleys for Waste collection vehicles only,2257361 , 26/06/2018,-73.99,"4,586.28","4,989.71"
600040,Waste Collection and Operations,Waste and Recycling,Infrastructure and Planning,49002,Miscellaneous Expenditure,Sibleys Fuel & Marine Services,Fuel from Sibleys for Waste collection vehicles only,2257361 , 26/06/2018,-427.35,"4,586.28","4,989.71"
600040,Waste Collection and Operations,Waste and Recycling,Infrastructure and Planning,49002,Miscellaneous Expenditure,Sibleys Fuel & Marine Services,Fuel for waste site vehicles,2257361 , 26/06/2018,-886.82,"4,586.28","4,989.71"
600040,Waste Collection and Operations,Waste and Recycling,Infrastructure and Planning,49002,Miscellaneous Expenditure,Sibleys Fuel & Marine Services,Fuel from Sibleys for Waste collection vehicles only,2257361 , 26/06/2018,73.99,"4,586.28","4,989.71"
600040,Waste Collection and Operations,Waste and Recycling,Infrastructure and Planning,49002,Miscellaneous Expenditure,Sibleys Fuel & Marine Services,Fuel from Sibleys for Waste collection vehicles only,2257361 , 26/06/2018,427.35,"4,586.28","4,989.71"
600040,Waste Collection and Operations,Waste and Recycling,Infrastructure and Planning,49002,Miscellaneous Expenditure,Sibleys Fuel & Marine Services,Fuel for waste site vehicles,2257361 , 26/06/2018,886.82,"4,586.28","4,989.71"
600040,Waste Collection and Operations,Waste and Recycling,Infrastructure and Planning,41104,Equipment & Plant - Direct Purchase,Pfs (Helston) Ltd,Materials,2207340 , 17/04/2018,"2,105.81","2,130.81","2,556.97"
600040,Waste Collection and Operations,Waste and Recycling,Infrastructure and Planning,46119,Haulage Costs,Pfs (Helston) Ltd,Carriage,2207340 , 17/04/2018,25.00,"2,130.81","2,556.97"
600040,Waste Collection and Operations,Waste and Recycling,Infrastructure and Planning,46118,Freight Costs,Isles Of Scilly Steamship Co,Waste skip freight,2209010 , 19/04/2018,"8,859.59","8,859.59","10,631.51"
600040,Waste Collection and Operations,Waste and Recycling,Infrastructure and Planning,49002,Miscellaneous Expenditure,Installation & Maintenance Services Limited,Supply corrugated sheets and fixings for waste site main shed,2221913 , 03/05/2018,"1,165.40","1,165.40","1,398.48"
600040,Waste Collection and Operations,Waste and Recycling,Infrastructure and Planning,73411,Vehicle / Plant Damage Exp,Hopkinsons Fairdeals Remarketing Llp,Deposit for waste collection vehicle,2195133 , 05/04/2018,"22,000.00","22,000.00","26,400.00"
600040,Waste Collection and Operations,Waste and Recycling,Infrastructure and Planning,73432,Workshop Expenditure - Labour Int,Harrison Fork Trucks Ltd,LABOUR,2193496 , 05/04/2018,888.50,888.50,"1,066.20"
600040,Waste Collection and Operations,Waste and Recycling,Infrastructure and Planning,42501,Protective Clothing,Essential Safety Wear Ltd,PROTECTIVE CLOTHING FOR WASTE OPERATIVES,2198146 , 10/04/2018,143.00,822.66,958.60
600040,Waste Collection and Operations,Waste and Recycling,Infrastructure and Planning,42501,Protective Clothing,Essential Safety Wear Ltd,PROTECTIVE CLOTHING FOR WASTE OPERATIVES,2198146 , 10/04/2018,634.66,822.66,958.60
600040,Waste Collection and Operations,Waste and Recycling,Infrastructure and Planning,46118,Freight Costs,Essential Safety Wear Ltd,PROTECTIVE CLOTHING  CARRIAGE,2198146 , 10/04/2018,45.00,822.66,958.60
600040,Waste Collection and Operations,Waste and Recycling,Infrastructure and Planning,49002,Miscellaneous Expenditure,Bryher Forge,(Bryher Forge) Bryher waste management contract,2246918 , 05/06/2018,875.00,875.00,875.00
600040,Waste Collection and Operations,Waste and Recycling,Infrastructure and Planning,49002,Miscellaneous Expenditure,Bryher Forge,(Bryher Forge) Bryher waste management contract,2232550 , 15/05/2018,875.00,875.00,875.00
600040,Waste Collection and Operations,Waste and Recycling,Infrastructure and Planning,49002,Miscellaneous Expenditure,Bryher Forge,(Bryher Forge) Bryher waste management contract,2268355 , 26/06/2018,875.00,875.00,875.00
600040,Waste Collection and Operations,Waste and Recycling,Infrastructure and Planning,41102,Equipment Rental,Aggreko Uk Ltd,,2209075 , 19/04/2018,558.88,558.88,670.66
600040,Waste Collection and Operations,Waste and Recycling,Infrastructure and Planning,41102,Equipment Rental,Aggreko Uk Ltd,Hire of Generator for compaction,2268299 , 26/06/2018,558.88,558.88,670.66
600042,Waste Recycling,Waste and Recycling,Infrastructure and Planning,57069,Waste Disposal Contracts - Private Contractors,Wheal Alfred Metals Recycling Ltd,IOS Light Iron,2257462 , 21/06/2018,800.00,800.00,960.00
600042,Waste Recycling,Waste and Recycling,Infrastructure and Planning,57069,Waste Disposal Contracts - Private Contractors,Viridor Waste Management Ltd,Isles of Scilly Packer Skip,2249305 , 07/06/2018,"18,149.54","18,149.54","21,779.40"
600042,Waste Recycling,Waste and Recycling,Infrastructure and Planning,57069,Waste Disposal Contracts - Private Contractors,Viridor Waste Management Ltd,Viridor Skip movement,2249309 , 07/06/2018,"12,000.00","12,000.00","14,400.00"
600042,Waste Recycling,Waste and Recycling,Infrastructure and Planning,57069,Waste Disposal Contracts - Private Contractors,Viridor Waste Management Ltd,Asbestos Skip,2249303 , 07/06/2018,"1,022.50","1,022.50","1,227.00"
600042,Waste Recycling,Waste and Recycling,Infrastructure and Planning,49002,Miscellaneous Expenditure,Smartlift Bulk Packing,lifting loops,2246998 , 07/06/2018,"2,062.00","2,062.00","2,474.40"
600042,Waste Recycling,Waste and Recycling,Infrastructure and Planning,46103,Hotel Expenses,Scilly Self Catering,June 15th for one week.,2253589 , 07/06/2018,720.00,720.00,720.00
600042,Waste Recycling,Waste and Recycling,Infrastructure and Planning,57069,Waste Disposal Contracts - Private Contractors,Redacted - personal information,Disposal of rubbish,2255115 , 12/06/2018,750.00,750.00,900.00
600042,Waste Recycling,Waste and Recycling,Infrastructure and Planning,57069,Waste Disposal Contracts - Private Contractors,Redacted - personal information,Disposal of Rubbish from St Agnes in April,2235142 , 17/05/2018,750.00,750.00,900.00
600042,Waste Recycling,Waste and Recycling,Infrastructure and Planning,49002,Miscellaneous Expenditure,Redacted - personal information,Waste Site Installation works,2262256 , 21/06/2018,"1,440.00","1,440.00","1,152.00"
600042,Waste Recycling,Waste and Recycling,Infrastructure and Planning,57069,Waste Disposal Contracts - Private Contractors,Redacted - personal information,"Disposal of rubbish from St Agnes
March 5, 12, 19, 26",2217291 , 26/04/2018,500.00,500.00,500.00
600042,Waste Recycling,Waste and Recycling,Infrastructure and Planning,41305,Purchase of Waste Sacks,Polystar Plastics Ltd,Commercial and Household sacks,2229099 , 15/05/2018,"1,120.00","1,120.00","1,344.00"
600042,Waste Recycling,Waste and Recycling,Infrastructure and Planning,41305,Purchase of Waste Sacks,Polystar Plastics Ltd,Commercial and Household sacks,2229096 , 15/05/2018,"4,188.10","4,188.10","5,025.72"
600042,Waste Recycling,Waste and Recycling,Infrastructure and Planning,41305,Purchase of Waste Sacks,Polystar Plastics Ltd,Commercial and Household sacks,2229092 , 15/05/2018,"1,425.60","1,425.60","1,710.72"
600042,Waste Recycling,Waste and Recycling,Infrastructure and Planning,43506,Professional Fees - Legal,Mills & Reeve,Professional Charges,2266822 , 26/06/2018,"6,155.20","6,155.20","7,386.24"
600042,Waste Recycling,Waste and Recycling,Infrastructure and Planning,49002,Miscellaneous Expenditure,Leppitt Associates,Waste Management & Environmental Advisory Serive,2263262 , 21/06/2018,"1,750.00","1,750.00","2,100.00"
600042,Waste Recycling,Waste and Recycling,Infrastructure and Planning,41302,Materials,Isles Of Scilly Steamship Co(Nike Engineering),Make up hydraulic hose for doppstadt,2191555 , 05/04/2018,"1,347.72","1,347.72","1,617.26"
600042,Waste Recycling,Waste and Recycling,Infrastructure and Planning,46118,Freight Costs,Isles Of Scilly Steamship Co,Freight delivery for Waste,2210919 , 24/04/2018,"2,186.64","2,913.30","3,495.99"
600042,Waste Recycling,Waste and Recycling,Infrastructure and Planning,46118,Freight Costs,Isles Of Scilly Steamship Co,April Invoice for Steamship Company,2236015 , 22/05/2018,"1,864.07","2,949.69","3,539.63"
600042,Waste Recycling,Waste and Recycling,Infrastructure and Planning,46118,Freight Costs,Isles Of Scilly Steamship Co,Waste Skips,2235137 , 17/05/2018,"3,808.21","3,808.21","4,569.87"
600042,Waste Recycling,Waste and Recycling,Infrastructure and Planning,46118,Freight Costs,Isles Of Scilly Steamship Co,Feb invoice from Steamship Group,2236005 , 22/05/2018,"3,266.63","4,799.03","5,758.86"
600042,Waste Recycling,Waste and Recycling,Infrastructure and Planning,57069,Waste Disposal Contracts - Private Contractors,Isles Of Scilly Steamship Co,Freight for waste February,2262208 , 19/06/2018,"8,211.09","8,211.09","9,853.28"
600042,Waste Recycling,Waste and Recycling,Infrastructure and Planning,21110,R&M - Electrical - Planned,Evans Electricals,Waste Site Installation Works - Design Cost,2265932 , 26/06/2018,834.00,"2,594.00","2,242.00"
600042,Waste Recycling,Waste and Recycling,Infrastructure and Planning,21110,R&M - Electrical - Planned,Evans Electricals,Waste Site Installation Works - Labour,2265932 , 26/06/2018,"1,760.00","2,594.00","2,242.00"
600042,Waste Recycling,Waste and Recycling,Infrastructure and Planning,41302,Materials,Edmundson Electrical Ltd,Supplies,2221136 , 03/05/2018,20.00,866.09,"1,039.31"
600042,Waste Recycling,Waste and Recycling,Infrastructure and Planning,41302,Materials,Edmundson Electrical Ltd,Supplies,2221136 , 03/05/2018,846.09,866.09,"1,039.31"
600042,Waste Recycling,Waste and Recycling,Infrastructure and Planning,43506,Professional Fees - Legal,Currie & Brown UK Ltd,Pre Contract as per email dated 23/02/2017,2232648 , 24/05/2018,"7,337.50","7,337.50","8,805.00"
600042,Waste Recycling,Waste and Recycling,Infrastructure and Planning,43506,Professional Fees - Legal,Cornwall Council,"Reimbursement of Soma Contract Services Ltd
DB/2018/April/Adj3",2240611 , 07/06/2018,"38,456.46","38,456.46","38,456.46"
600042,Waste Recycling,Waste and Recycling,Infrastructure and Planning,57069,Waste Disposal Contracts - Private Contractors,Aggreko Uk Ltd,Generator Greenpower Panopy. 30.04.2018-27.05.2018,2268300 , 28/06/2018,558.88,558.88,670.66
600042,Waste Recycling,Waste and Recycling,Infrastructure and Planning,41302,Materials,Aggreko Uk Ltd,"VA Generator Green power canopy
Load center industrial
Cable 6mm
cable 35mm",2207332 , 01/05/2018,558.88,558.88,670.66
600050,Water & Sewerage,Operational Services,Infrastructure and Planning,31505,Boat Hire,Tresco Estate,Ref o/no OP10045 Jet boat from St martin's to St Mary's and returned,2208977 , 24/04/2018,83.40,"3,055.90","3,055.90"
600050,Water & Sewerage,Operational Services,Infrastructure and Planning,49002,Miscellaneous Expenditure,Tresco Estate,Return boat to repair borehole 1,2208977 , 24/04/2018,15.00,"3,055.90","3,055.90"
600050,Water & Sewerage,Operational Services,Infrastructure and Planning,49002,Miscellaneous Expenditure,Tresco Estate,Boating for sampling,2231195 , 17/05/2018,79.50,502.00,502.00
600050,Water & Sewerage,Operational Services,Infrastructure and Planning,45105,Telephone Usage,The Phone Co-Op Ltd,phone charges,2204683 , 10/04/2018,2.76,"1,485.05","1,782.06"
600050,Water & Sewerage,Operational Services,Infrastructure and Planning,45105,Telephone Usage,The Phone Co-Op Ltd,phone charges,2204683 , 10/04/2018,1.78,"1,485.05","1,782.06"
600050,Water & Sewerage,Operational Services,Infrastructure and Planning,45105,Telephone Usage,The Phone Co-Op Ltd,phone charges,2204683 , 10/04/2018,12.49,"1,485.05","1,782.06"
600050,Water & Sewerage,Operational Services,Infrastructure and Planning,45105,Telephone Usage,The Phone Co-Op Ltd,phone charges,2204683 , 10/04/2018,33.00,"1,485.05","1,782.06"
600050,Water & Sewerage,Operational Services,Infrastructure and Planning,45105,Telephone Usage,The Phone Co-Op Ltd,phone charges,2204683 , 10/04/2018,46.50,"1,485.05","1,782.06"
600050,Water & Sewerage,Operational Services,Infrastructure and Planning,45215,Internet/Broadband charges,The Phone Co-Op Ltd,phone charges,2204683 , 10/04/2018,36.00,"1,485.05","1,782.06"
600050,Water & Sewerage,Operational Services,Infrastructure and Planning,45215,Internet/Broadband charges,The Phone Co-Op Ltd,phone charges,2204683 , 10/04/2018,17.00,"1,485.05","1,782.06"
600050,Water & Sewerage,Operational Services,Infrastructure and Planning,49002,Miscellaneous Expenditure,Terran Design Systems Ltd,"Communication equipment, pneumatic actuator, probes",2206691 , 17/04/2018,"2,041.04","2,041.04","2,449.25"
600050,Water & Sewerage,Operational Services,Infrastructure and Planning,41302,Materials,Terran Design Systems Ltd,Equipment,2191596 , 05/04/2018,"1,969.60","1,969.60","2,363.52"
600050,Water & Sewerage,Operational Services,Infrastructure and Planning,49002,Miscellaneous Expenditure,Terran Design Systems Ltd,"Flow cell, ORP/pH probes, memosence cables, free CL2 probe, flow monitor, carriage.",2264576 , 21/06/2018,"3,074.85","3,074.85","3,689.81"
600050,Water & Sewerage,Operational Services,Infrastructure and Planning,43505,Consultants - Other,SLR Consulting Ltd,Review of KML Clain,2185936 , 12/04/2018,"2,625.00","2,625.00","3,150.00"
600050,Water & Sewerage,Operational Services,Infrastructure and Planning,49002,Miscellaneous Expenditure,Sibleys Fuel & Marine Services,Fuel,2235980 , 21/06/2018,125.82,"3,606.43","3,947.54"
600050,Water & Sewerage,Operational Services,Infrastructure and Planning,49002,Miscellaneous Expenditure,Sibleys Fuel & Marine Services,Fuel,2235980 , 21/06/2018,-105.75,"3,606.43","3,947.54"
600050,Water & Sewerage,Operational Services,Infrastructure and Planning,49002,Miscellaneous Expenditure,Sibleys Fuel & Marine Services,Fuel,2235980 , 21/06/2018,105.75,"3,606.43","3,947.54"
600050,Water & Sewerage,Operational Services,Infrastructure and Planning,49002,Miscellaneous Expenditure,Sibleys Fuel & Marine Services,Fuel,2235980 , 21/06/2018,49.31,"3,606.43","3,947.54"
600050,Water & Sewerage,Operational Services,Infrastructure and Planning,49002,Miscellaneous Expenditure,Sibleys Fuel & Marine Services,Fuel,2235980 , 21/06/2018,43.58,"3,606.43","3,947.54"
600050,Water & Sewerage,Operational Services,Infrastructure and Planning,49002,Miscellaneous Expenditure,Sibleys Fuel & Marine Services,Fuel,2205310 , 01/05/2018,49.32,"2,003.50","2,251.30"
600050,Water & Sewerage,Operational Services,Infrastructure and Planning,49002,Miscellaneous Expenditure,Sibleys Fuel & Marine Services,Fuel,2205310 , 01/05/2018,42.70,"2,003.50","2,251.30"
600050,Water & Sewerage,Operational Services,Infrastructure and Planning,49002,Miscellaneous Expenditure,Sibleys Fuel & Marine Services,Fuel,2205310 , 01/05/2018,51.68,"2,003.50","2,251.30"
600050,Water & Sewerage,Operational Services,Infrastructure and Planning,49002,Miscellaneous Expenditure,Sibleys Fuel & Marine Services,Fuel,2257361 , 26/06/2018,103.57,"4,586.28","4,989.71"
600050,Water & Sewerage,Operational Services,Infrastructure and Planning,49002,Miscellaneous Expenditure,Sibleys Fuel & Marine Services,Fuel,2257361 , 26/06/2018,46.03,"4,586.28","4,989.71"
600050,Water & Sewerage,Operational Services,Infrastructure and Planning,49002,Miscellaneous Expenditure,Sibleys Fuel & Marine Services,Fuel,2257361 , 26/06/2018,-46.03,"4,586.28","4,989.71"
600050,Water & Sewerage,Operational Services,Infrastructure and Planning,49002,Miscellaneous Expenditure,Sibleys Fuel & Marine Services,Fuel,2257361 , 26/06/2018,-103.57,"4,586.28","4,989.71"
600050,Water & Sewerage,Operational Services,Infrastructure and Planning,49002,Miscellaneous Expenditure,Sibleys Fuel & Marine Services,Fuel,2257361 , 26/06/2018,103.57,"4,586.28","4,989.71"
600050,Water & Sewerage,Operational Services,Infrastructure and Planning,49002,Miscellaneous Expenditure,Sibleys Fuel & Marine Services,Fuel,2257361 , 26/06/2018,46.03,"4,586.28","4,989.71"
600050,Water & Sewerage,Operational Services,Infrastructure and Planning,22004,Solid Fuel,Sibleys Fuel & Marine Services,Fuel and Oil,2191589 , 05/04/2018,"-5,417.46","5,417.46","5,860.83"
600050,Water & Sewerage,Operational Services,Infrastructure and Planning,22004,Solid Fuel,Sibleys Fuel & Marine Services,Fuel and Oil,2191589 , 05/04/2018,"5,417.46","5,417.46","5,860.83"
600050,Water & Sewerage,Operational Services,Infrastructure and Planning,46103,Hotel Expenses,Scilly Self Catering,Saturday 9th June until the 16th of June. Water Department.,2255124 , 12/06/2018,770.00,770.00,770.00
600050,Water & Sewerage,Operational Services,Infrastructure and Planning,49002,Miscellaneous Expenditure,Pfs (Helston) Ltd,Supplies,2262114 , 19/06/2018,25.00,"1,391.07","1,669.28"
600050,Water & Sewerage,Operational Services,Infrastructure and Planning,49002,Miscellaneous Expenditure,Pfs (Helston) Ltd,Supplies,2262114 , 19/06/2018,-5.00,"1,391.07","1,669.28"
600050,Water & Sewerage,Operational Services,Infrastructure and Planning,49002,Miscellaneous Expenditure,Pfs (Helston) Ltd,Supplies,2262114 , 19/06/2018,5.00,"1,391.07","1,669.28"
600050,Water & Sewerage,Operational Services,Infrastructure and Planning,49002,Miscellaneous Expenditure,Pfs (Helston) Ltd,Supplies,2262114 , 19/06/2018,"1,366.07","1,391.07","1,669.28"
600050,Water & Sewerage,Operational Services,Infrastructure and Planning,41302,Materials,Pfs (Helston) Ltd,Supplies,2191572 , 05/04/2018,838.00,838.00,"1,005.60"
600050,Water & Sewerage,Operational Services,Infrastructure and Planning,49002,Miscellaneous Expenditure,Pfs (Helston) Ltd,"Brass couplings, n/gauge plasson inserts, skytec argon/nitrile gloves, boundary meter, concentric meter, floatation module, class D Kent meter 1/2"" and 3/4""",2232679 , 15/05/2018,"1,989.94","1,989.94","2,387.93"
600050,Water & Sewerage,Operational Services,Infrastructure and Planning,49002,Miscellaneous Expenditure,Pfs (Helston) Ltd,Hydranautic membranes,2195818 , 12/04/2018,"4,900.00","4,900.00","5,880.00"
600050,Water & Sewerage,Operational Services,Infrastructure and Planning,49002,Miscellaneous Expenditure,Palintest Ltd,"Test tubes PT 595/5 x 1
Phenol Red AP130 x 1
Nitrate PL404 x 4
Lead PT435 x 3
DPD No 1 AP011 x 4
Iron LR AP155 x 1
DPD No 3 AP 031/1 x 2
Delivery charge �",2222628 , 15/05/2018,643.60,643.60,772.32
600050,Water & Sewerage,Operational Services,Infrastructure and Planning,49002,Miscellaneous Expenditure,Oil & Water Supplies Ltd,Membranes,2193743 , 05/04/2018,"4,086.00","4,086.00","4,903.20"
600050,Water & Sewerage,Operational Services,Infrastructure and Planning,49002,Miscellaneous Expenditure,Oil & Water Supplies Ltd,"2 x Sodium Hydroxide IBC 1000 litres with tamper proof seal, including storage and delivery",2255080 , 12/06/2018,"3,154.00","3,154.00","3,784.80"
600050,Water & Sewerage,Operational Services,Infrastructure and Planning,49002,Miscellaneous Expenditure,Oil & Water Supplies Ltd,Flowfit-W CCA250,2255106 , 12/06/2018,840.00,840.00,"1,008.00"
600050,Water & Sewerage,Operational Services,Infrastructure and Planning,49002,Miscellaneous Expenditure,Oil & Water Supplies Ltd,2 x ZFM550T Franklin motor 234-765-3421L 4KW,2255108 , 12/06/2018,"2,811.20","2,811.20","3,373.44"
600050,Water & Sewerage,Operational Services,Infrastructure and Planning,49002,Miscellaneous Expenditure,Oil & Water Supplies Ltd,3 x 1000 litres Sodium Hypochlorite IBC,2270199 , 28/06/2018,"4,541.00","4,541.00","5,449.20"
600050,Water & Sewerage,Operational Services,Infrastructure and Planning,49002,Miscellaneous Expenditure,Oil & Water Supplies Ltd,CRT16-4 A-P-A-E-AUUE 3X380-415 DV Vertical multistage fixed speed pump titanium 4 KW,2255107 , 12/06/2018,"4,880.40","4,880.40","5,856.48"
600050,Water & Sewerage,Operational Services,Infrastructure and Planning,49002,Miscellaneous Expenditure,Oil & Water Supplies Ltd,Membranes,2255754 , 21/06/2018,"4,086.00","4,086.00","4,903.20"
600050,Water & Sewerage,Operational Services,Infrastructure and Planning,41302,Materials,Oil & Water Supplies Ltd,Oil and water supplies,2191738 , 05/04/2018,"5,529.00","5,529.00","6,634.80"
600050,Water & Sewerage,Operational Services,Infrastructure and Planning,49002,Miscellaneous Expenditure,Oil & Water Supplies Ltd,"Anti-scalent Pro Tek R.O Plus 11
water treatment chemical",2207482 , 17/04/2018,"2,577.92","2,577.92","3,093.50"
600050,Water & Sewerage,Operational Services,Infrastructure and Planning,49002,Miscellaneous Expenditure,Oil & Water Supplies Ltd,1000 litres of Sodium Hydroxide,2221130 , 03/05/2018,"3,948.00","3,948.00","4,737.60"
600050,Water & Sewerage,Operational Services,Infrastructure and Planning,49002,Miscellaneous Expenditure,Oil & Water Supplies Ltd,Membranes,2235091 , 17/05/2018,"4,086.00","4,086.00","4,903.20"
600050,Water & Sewerage,Operational Services,Infrastructure and Planning,49002,Miscellaneous Expenditure,Oil & Water Supplies Ltd,Membranes,2212345 , 24/04/2018,"4,086.00","4,086.00","4,903.20"
600050,Water & Sewerage,Operational Services,Infrastructure and Planning,49002,Miscellaneous Expenditure,Oil & Water Supplies Ltd,ES4 1219 Wetend,2255109 , 12/06/2018,"1,045.80","1,045.80","1,254.96"
600050,Water & Sewerage,Operational Services,Infrastructure and Planning,49002,Miscellaneous Expenditure,Oil & Water Supplies Ltd,2 x PRO-TEK Clean HC LBR Sodium Hypochlorite 250 kgs,2255110 , 12/06/2018,510.13,510.13,612.16
600050,Water & Sewerage,Operational Services,Infrastructure and Planning,43507,Professional Fees - Construction,James Lockyer Associates Ltd,"Support and attendance during reconstruction of CSO including new screening chamber. 
Arranging installation of EDM system as required by EA Permit.
Addressing commissioning issues with EDM system due to connectivity problems.",2256766 , 12/06/2018,"4,635.00","4,635.00","5,562.00"
600050,Water & Sewerage,Operational Services,Infrastructure and Planning,49002,Miscellaneous Expenditure,Isles Of Scilly Steamship Co(Nike Engineering),"Fit New tyres
Supple 2 new tyres 245-70-16 All terrain
Freight
Tyre disposal",2213566 , 24/04/2018,512.31,512.31,614.77
600050,Water & Sewerage,Operational Services,Infrastructure and Planning,46118,Freight Costs,Isles Of Scilly Steamship Co,Freight delivery for WATER,2210919 , 24/04/2018,446.17,"2,913.30","3,495.99"
600050,Water & Sewerage,Operational Services,Infrastructure and Planning,46118,Freight Costs,Isles Of Scilly Steamship Co,April Invoice for Steamship Company,2236015 , 22/05/2018,463.06,"2,949.69","3,539.63"
600050,Water & Sewerage,Operational Services,Infrastructure and Planning,46118,Freight Costs,Isles Of Scilly Steamship Co,Feb invoice from Steamship Group,2236005 , 22/05/2018,528.79,"4,799.03","5,758.86"
600050,Water & Sewerage,Operational Services,Infrastructure and Planning,49002,Miscellaneous Expenditure,Idexx Laboratories Limited,"Vessels Antifoam x 1  98-06161-00
Quantitray  x 2          98-21378-00
Colilert    x1              98-12973-00",2236187 , 07/06/2018,844.60,844.60,"1,013.52"
600050,Water & Sewerage,Operational Services,Infrastructure and Planning,41302,Materials,Idexx Laboratories Limited,Binder Incubator,2191545 , 12/04/2018,"1,763.36","1,763.36","2,116.03"
600050,Water & Sewerage,Operational Services,Infrastructure and Planning,49002,Miscellaneous Expenditure,Hembury 4X4,Ford Ranger 2008 XLT,2260980 , 19/06/2018,"7,995.00","7,995.00","7,995.00"
600050,Water & Sewerage,Operational Services,Infrastructure and Planning,49002,Miscellaneous Expenditure,Eye Marine Ltd,"EYE 1000 yellow 1 NM lantern, 16x100mm self colour chain, BS self colour bow shackle, 22mm forged swivel, carriage.",2236139 , 22/05/2018,"1,973.50","1,973.50","2,368.20"
600050,Water & Sewerage,Operational Services,Infrastructure and Planning,41302,Materials,Edmundson Electrical Ltd,Parts for Waste site electrical Installation,2191537 , 05/04/2018,-141.09,"3,827.47","4,592.96"
600050,Water & Sewerage,Operational Services,Infrastructure and Planning,41302,Materials,Edmundson Electrical Ltd,Parts for Waste site electrical Installation,2191537 , 05/04/2018,141.09,"3,827.47","4,592.96"
600050,Water & Sewerage,Operational Services,Infrastructure and Planning,41302,Materials,Edmundson Electrical Ltd,Parts for Waste site electrical Installation,2191537 , 05/04/2018,"3,827.47","3,827.47","4,592.96"
600050,Water & Sewerage,Operational Services,Infrastructure and Planning,41103,Equipment - Spares,Edmundson Electrical Ltd,Parts,2191526 , 05/04/2018,21.78,501.60,601.92
600050,Water & Sewerage,Operational Services,Infrastructure and Planning,41103,Equipment - Spares,Edmundson Electrical Ltd,Parts,2191526 , 05/04/2018,-21.78,501.60,601.92
600050,Water & Sewerage,Operational Services,Infrastructure and Planning,41103,Equipment - Spares,Edmundson Electrical Ltd,Parts,2191526 , 05/04/2018,501.60,501.60,601.92
600050,Water & Sewerage,Operational Services,Infrastructure and Planning,46119,Haulage Costs,Bryher Forge,Water Dept Haulage,2234917 , 17/05/2018,650.00,650.00,650.00
600050,Water & Sewerage,Operational Services,Infrastructure and Planning,22002,Electricity,British Gas Business,Desalination Plant,2217982 , 27/04/2018,"6,510.85","6,510.85","7,813.02"
600050,Water & Sewerage,Operational Services,Infrastructure and Planning,22002,Electricity,British Gas Business,Desalination Plant,2217985 , 27/04/2018,"1,699.47","1,699.47","2,039.36"
600050,Water & Sewerage,Operational Services,Infrastructure and Planning,22002,Electricity,British Gas Business,Desalination Plant,2217990 , 27/04/2018,"1,973.60","1,973.60","2,368.32"
600050,Water & Sewerage,Operational Services,Infrastructure and Planning,22002,Electricity,British Gas Business,Desalination Plant,2217980 , 27/04/2018,"1,018.45","1,018.45","1,222.14"
600050,Water & Sewerage,Operational Services,Infrastructure and Planning,41103,Equipment - Spares,Bonney & Jarman Ltd,Parts for Waste Site Electrical installation,2191519 , 05/04/2018,"1,200.00","1,200.00","1,440.00"
600060,Airport,Operational Services,Infrastructure and Planning,42503,Uniforms / Clothing,Total Workwear,"01.04.18 - 31.3.19
Airport Uniforms/PPE
TOTAL WORKWEAR",2242202 , 07/06/2018,662.98,693.90,700.09
600060,Airport,Operational Services,Infrastructure and Planning,42503,Uniforms / Clothing,Total Workwear,"01.04.18 - 31.3.19
Airport Uniforms/PPE
TOTAL WORKWEAR",2242202 , 07/06/2018,30.92,693.90,700.09
600060,Airport,Operational Services,Infrastructure and Planning,45105,Telephone Usage,The Phone Co-Op Ltd,phone charges,2204683 , 10/04/2018,11.00,"1,485.05","1,782.06"
600060,Airport,Operational Services,Infrastructure and Planning,45210,IT Communications,Systems Interface Ltd,Systems Interface One Year Telephone support contract 1st April 2018 - 31st March 2019,2212548 , 24/04/2018,"3,143.00","3,143.00","3,771.60"
600060,Airport,Operational Services,Infrastructure and Planning,41109,R&M of Plant & Equipment,Systems Interface Ltd,Systems Interface. NDB monitor repairs,2228650 , 10/05/2018,"1,342.00","1,342.00","1,610.40"
600060,Airport,Operational Services,Infrastructure and Planning,22001,Heating Oil,Sibleys Fuel & Marine Services,GAS OIL,2206698 , 17/04/2018,780.30,"2,081.07","2,199.10"
600060,Airport,Operational Services,Infrastructure and Planning,22001,Heating Oil,Sibleys Fuel & Marine Services,WHITE OIL,2206698 , 17/04/2018,"1,207.60","2,081.07","2,199.10"
600060,Airport,Operational Services,Infrastructure and Planning,31205,Petrol Purchases,Sibleys Fuel & Marine Services,DERV/PETROL,2206698 , 17/04/2018,93.17,"2,081.07","2,199.10"
600060,Airport,Operational Services,Infrastructure and Planning,22001,Heating Oil,Sibleys Fuel & Marine Services,DERV + WHITE OIL,2206692 , 17/04/2018,"1,207.00","1,327.67","1,412.15"
600060,Airport,Operational Services,Infrastructure and Planning,31205,Petrol Purchases,Sibleys Fuel & Marine Services,DERV,2206692 , 17/04/2018,120.67,"1,327.67","1,412.15"
600060,Airport,Operational Services,Infrastructure and Planning,31205,Petrol Purchases,Sibleys Fuel & Marine Services,Fuel for Airport UV,2205310 , 01/05/2018,33.27,"2,003.50","2,251.30"
600060,Airport,Operational Services,Infrastructure and Planning,42502,Laundry,Sibleys Fuel & Marine Services,"Airport Fire Laundry
1st April 2018 - 31st March 2019",2257361 , 26/06/2018,33.75,"4,586.28","4,989.71"
600060,Airport,Operational Services,Infrastructure and Planning,42502,Laundry,Sibleys Fuel & Marine Services,"Airport Fire Laundry
1st April 2018 - 31st March 2019",2257361 , 26/06/2018,-33.75,"4,586.28","4,989.71"
600060,Airport,Operational Services,Infrastructure and Planning,42502,Laundry,Sibleys Fuel & Marine Services,"Airport Fire Laundry
1st April 2018 - 31st March 2019",2257361 , 26/06/2018,33.75,"4,586.28","4,989.71"
600060,Airport,Operational Services,Infrastructure and Planning,41102,Equipment Rental,Servicom (High Tech) Ltd,"Hire and Servicing of Airport UHF radios
1st April 2018 - 31st March 2019",2229141 , 10/05/2018,778.16,778.16,933.78
600060,Airport,Operational Services,Infrastructure and Planning,41102,Equipment Rental,Servicom (High Tech) Ltd,"Hire and Servicing of Airport UHF radios
1st April 2018 - 31st March 2019",2254585 , 12/06/2018,778.16,778.16,933.78
600060,Airport,Operational Services,Infrastructure and Planning,41102,Equipment Rental,Servicom (High Tech) Ltd,RADIO/HEADSETS,2213121 , 24/04/2018,778.16,778.16,933.78
600060,Airport,Operational Services,Infrastructure and Planning,41102,Equipment Rental,Servicom (High Tech) Ltd,"Hire and Servicing of Airport UHF radios
1st April 2018 - 31st March 2019",2217807 , 01/05/2018,778.16,778.16,933.78
600060,Airport,Operational Services,Infrastructure and Planning,12301,Training,Serco Ltd,INTERNATIONAL FIRE TRAINING CENTRE. 2 X BASIC FIRE FIGHTERS COURSE FOR THE AIRPORT,2230237 , 29/05/2018,"20,400.00","20,400.00","24,480.00"
600060,Airport,Operational Services,Infrastructure and Planning,21101,R&M - Buildings - Planned,Robson Site Services Ltd,Supply and fit 2 x diamond face check-in belts including vulcanisation,2206066 , 17/04/2018,"2,994.00","2,994.00","3,592.80"
600060,Airport,Operational Services,Infrastructure and Planning,27001,Contract Cleaning,Redacted - personal information,Airport Cleaning  1st April 2018- 31st March 2019,2219410 , 03/05/2018,735.00,735.00,735.00
600060,Airport,Operational Services,Infrastructure and Planning,27001,Contract Cleaning,Redacted - personal information,Airport Cleaning  1st April 2018- 31st March 2019,2228788 , 10/05/2018,750.00,750.00,750.00
600060,Airport,Operational Services,Infrastructure and Planning,27001,Contract Cleaning,Redacted - personal information,Airport Cleaning  1st April 2018- 31st March 2019,2257328 , 12/06/2018,510.00,510.00,510.00
600060,Airport,Operational Services,Infrastructure and Planning,21101,R&M - Buildings - Planned,Record UK,DOOR MAINTENANCE,2213119 , 10/05/2018,892.13,892.13,"1,070.56"
600060,Airport,Operational Services,Infrastructure and Planning,21101,R&M - Buildings - Planned,Record UK,MAINTENANCE OF AUTOMATIC DOORS,2193810 , 12/04/2018,659.50,659.50,791.40
600060,Airport,Operational Services,Infrastructure and Planning,21101,R&M - Buildings - Planned,R & M Cleaners,"Commercial cleaning-high level windows, ledges etc",2209082 , 19/04/2018,"2,093.23","3,059.89","3,671.87"
600060,Airport,Operational Services,Infrastructure and Planning,31503,Taxi and Minibus,R & M Cleaners,"Commercial cleaning-high level windows, ledges etc",2209082 , 19/04/2018,33.33,"3,059.89","3,671.87"
600060,Airport,Operational Services,Infrastructure and Planning,31602,Air Travel,R & M Cleaners,"Commercial cleaning-high level windows, ledges etc",2209082 , 19/04/2018,416.67,"3,059.89","3,671.87"
600060,Airport,Operational Services,Infrastructure and Planning,46109,Car Park Charges,R & M Cleaners,"Commercial cleaning-high level windows, ledges etc",2209082 , 19/04/2018,33.33,"3,059.89","3,671.87"
600060,Airport,Operational Services,Infrastructure and Planning,46102,Subsistence,R & M Cleaners,"Commercial cleaning-high level windows, ledges etc",2209082 , 19/04/2018,183.33,"3,059.89","3,671.87"
600060,Airport,Operational Services,Infrastructure and Planning,46103,Hotel Expenses,R & M Cleaners,"Commercial cleaning-high level windows, ledges etc",2209082 , 19/04/2018,300.00,"3,059.89","3,671.87"
600060,Airport,Operational Services,Infrastructure and Planning,27001,Contract Cleaning,R & M Cleaners,Commercial cleaning of Airport Terminal,2209084 , 19/04/2018,"1,225.00","1,225.00","1,470.00"
600060,Airport,Operational Services,Infrastructure and Planning,49002,Miscellaneous Expenditure,Perren Engineering Ltd,Perren Extinguisher Servicing for Airport Fire Appliance,2241600 , 12/06/2018,968.40,968.40,"1,162.08"
600060,Airport,Operational Services,Infrastructure and Planning,89209,Other Professional Fees,Paul Fassam Geomatics,"Airport Survey Fees CAP232
2018-2019",2235850 , 22/05/2018,"6,180.00","6,180.00","7,416.00"
600060,Airport,Operational Services,Infrastructure and Planning,43501,External Testing & Analysis,Isles Of Scilly Steamship Co,VDF Flight Check 20-21st March 2018,2213515 , 03/05/2018,"1,650.00","1,650.00","1,980.00"
600060,Airport,Operational Services,Infrastructure and Planning,41104,Equipment & Plant - Direct Purchase,Iavna Ltd,"FLASH INSERT LIGHT, PCB RECTIFIER, FUSE, RELAY ASSY, FLASHTUBE PAR  + CARRIAGE",2200273 , 10/04/2018,"5,318.81","5,373.81","6,448.57"
600060,Airport,Operational Services,Infrastructure and Planning,45302,Postal/Secure Courier,Iavna Ltd,"FLASH INSERT LIGHT, PCB RECTIFIER, FUSE, RELAY ASSY, FLASHTUBE PAR  + CARRIAGE",2200273 , 10/04/2018,55.00,"5,373.81","6,448.57"
600060,Airport,Operational Services,Infrastructure and Planning,41104,Equipment & Plant - Direct Purchase,Iavna Ltd,"LINLANER, RETRO REFLECTIVE SHEATH, LINLANER FIXING POLE",2200295 , 10/04/2018,"2,112.00","2,147.00","2,576.40"
600060,Airport,Operational Services,Infrastructure and Planning,45302,Postal/Secure Courier,Iavna Ltd,CARRIAGE,2200295 , 10/04/2018,35.00,"2,147.00","2,576.40"
600060,Airport,Operational Services,Infrastructure and Planning,44003,Insurance Premiums - Property,Hayward Aviation,Airport Liability Insurance wef 31st March 2018.Paid in two instalments of 7550.28,2213752 , 24/04/2018,"15,100.56","15,100.56","15,100.56"
600060,Airport,Operational Services,Infrastructure and Planning,12301,Training,Global ATS Ltd,Global ATS Ltd - Approach Control Procedural Re0Course Package,2270164 , 28/06/2018,"5,835.00","5,835.00","7,002.00"
600060,Airport,Operational Services,Infrastructure and Planning,46109,Car Park Charges,Fire Safety Solutions,"FIRE RISK ASSESSMENT, AIRPORT PARKING, AIRPORT SUBSISTENCE",2200372 , 10/04/2018,23.00,"1,103.00","1,103.00"
600060,Airport,Operational Services,Infrastructure and Planning,21124,R&M - Planned Fire equip servicing,Fire Safety Solutions,"FIRE RISK ASSESSMENT, AIRPORT PARKING, AIRPORT SUBSISTENCE",2200372 , 10/04/2018,"1,050.00","1,103.00","1,103.00"
600060,Airport,Operational Services,Infrastructure and Planning,46102,Subsistence,Fire Safety Solutions,"FIRE RISK ASSESSMENT, AIRPORT PARKING, AIRPORT SUBSISTENCE",2200372 , 10/04/2018,30.00,"1,103.00","1,103.00"
600060,Airport,Operational Services,Infrastructure and Planning,25003,Fire Equipment,Fire Safety Solutions,IOS FSI WORK ATTEND CORNWALL FIRE & RESCUE TRAINING DAYS,2200365 , 10/04/2018,"1,500.00","1,500.00","1,800.00"
600060,Airport,Operational Services,Infrastructure and Planning,25003,Fire Equipment,Fire Safety Solutions,"IOS FSI WORK, IOS FSI WORK PARKING & ADF, IOS FSI WORK SUBSISTENCE",2200363 , 10/04/2018,"4,070.00","4,070.00","4,884.00"
600060,Airport,Operational Services,Infrastructure and Planning,25003,Fire Equipment,Fire Safety Solutions,"IOS FSI WORK, IOS FSI WORK PARKING & ADF, IOS FSI WORK - SUBSISTENCE",2200368 , 10/04/2018,963.00,963.00,"1,155.60"
600060,Airport,Operational Services,Infrastructure and Planning,22002,Electricity,Edf Energy Plc,ELECTRICITY,2246844 , 07/06/2018,"1,293.67","1,293.67","1,552.41"
600060,Airport,Operational Services,Infrastructure and Planning,22002,Electricity,Edf Energy Plc,ELECTRICITY,2216039 , 10/05/2018,"1,476.22","1,476.22","1,771.46"
600060,Airport,Operational Services,Infrastructure and Planning,31102,Vehicle Repair and Maintenance,David Parr Engineering,AIR LEAK AXLE DIFF. LOCK REMOVE TENDER NIKE WORKSHOP...,2200194 , 10/04/2018,"2,128.00","2,128.00","2,553.60"
600060,Airport,Operational Services,Infrastructure and Planning,31102,Vehicle Repair and Maintenance,David Parr Engineering,"D Parr Engineering Contract
All Airport Vehicles & Machinery
1st April 2018 - 31st March 2019",2256465 , 12/06/2018,"1,160.00","1,160.00","1,392.00"
600060,Airport,Operational Services,Infrastructure and Planning,31102,Vehicle Repair and Maintenance,David Parr Engineering,"D Parr Engineering Contract
All Airport Vehicles & Machinery
1st April 2018 - 31st March 2019",2212368 , 24/04/2018,"1,160.00","1,160.00","1,392.00"
600060,Airport,Operational Services,Infrastructure and Planning,41109,R&M of Plant & Equipment,Davey & Gilbert Ltd,REPAIRS & MAINTENANCE ON AIRPORT BOILERS,2213123 , 24/04/2018,"1,365.00","1,365.00","1,638.00"
600060,Airport,Operational Services,Infrastructure and Planning,41302,Materials,CU Phosco Lighting Ltd,VARIOUS LIGHTING EQUIPMENT,2217846 , 01/05/2018,"6,731.04","6,731.04","8,077.25"
600060,Airport,Operational Services,Infrastructure and Planning,45103,Line Rental & Installation,CTI Communications Ltd,CTi Communications IP400 Airport Support Contract 1st April 2018 - 31st March 2019,2234095 , 17/05/2018,559.00,559.00,670.80
600060,Airport,Operational Services,Infrastructure and Planning,21101,R&M - Buildings - Planned,Cornwall Scale Equipment Ltd,Cornwall Scales Equipment Ltd Calibration of Scales,2225368 , 08/05/2018,222.89,576.05,659.26
600060,Airport,Operational Services,Infrastructure and Planning,21101,R&M - Buildings - Planned,Cornwall Scale Equipment Ltd,Cornwall Scales Equipment Ltd Calibration of Scales,2225368 , 08/05/2018,85.72,576.05,659.26
600060,Airport,Operational Services,Infrastructure and Planning,31602,Air Travel,Cornwall Scale Equipment Ltd,Cornwall Scales Equipment Ltd Calibration of Scales,2225368 , 08/05/2018,106.98,576.05,659.26
600060,Airport,Operational Services,Infrastructure and Planning,31602,Air Travel,Cornwall Scale Equipment Ltd,Cornwall Scales Equipment Ltd Calibration of Scales,2225368 , 08/05/2018,41.14,576.05,659.26
600060,Airport,Operational Services,Infrastructure and Planning,46109,Car Park Charges,Cornwall Scale Equipment Ltd,Cornwall Scales Equipment Ltd Calibration of Scales,2225368 , 08/05/2018,11.89,576.05,659.26
600060,Airport,Operational Services,Infrastructure and Planning,46109,Car Park Charges,Cornwall Scale Equipment Ltd,Cornwall Scales Equipment Ltd Calibration of Scales,2225368 , 08/05/2018,4.57,576.05,659.26
600060,Airport,Operational Services,Infrastructure and Planning,46118,Freight Costs,Cornwall Scale Equipment Ltd,Cornwall Scales Equipment Ltd Calibration of Scales,2225368 , 08/05/2018,53.49,576.05,659.26
600060,Airport,Operational Services,Infrastructure and Planning,46118,Freight Costs,Cornwall Scale Equipment Ltd,Cornwall Scales Equipment Ltd Calibration of Scales,2225368 , 08/05/2018,20.57,576.05,659.26
600060,Airport,Operational Services,Infrastructure and Planning,45302,Postal/Secure Courier,Cornwall Scale Equipment Ltd,Cornwall Scales Equipment Ltd Calibration of Scales,2225368 , 08/05/2018,20.80,576.05,659.26
600060,Airport,Operational Services,Infrastructure and Planning,45302,Postal/Secure Courier,Cornwall Scale Equipment Ltd,Cornwall Scales Equipment Ltd Calibration of Scales,2225368 , 08/05/2018,8.00,576.05,659.26
600060,Airport,Operational Services,Infrastructure and Planning,21110,R&M - Electrical - Planned,Cornwall Refrigeration solutions Ltd,AGL WORKS 26 - 27TH MARCH 2018 TRAVEL TIME,2200187 , 10/04/2018,760.00,"1,040.00","1,248.00"
600060,Airport,Operational Services,Infrastructure and Planning,23002,Council Tax,Cornwall Refrigeration solutions Ltd,AGL WORKS 26 - 27TH MARCH 2018 TRAVEL TIME,2200187 , 10/04/2018,280.00,"1,040.00","1,248.00"
600060,Airport,Operational Services,Infrastructure and Planning,21110,R&M - Electrical - Planned,Cornwall Refrigeration solutions Ltd,Airport Ground Lighting Repairs & Maintenance 1st April 2018 - 31st March 2019,2255128 , 19/06/2018,"1,290.00","1,290.00","1,548.00"
600060,Airport,Operational Services,Infrastructure and Planning,43532,Professional Fees - Other,Cornwall Airport Limited,Newquay Airport ATE support & equipment contract,2254482 , 07/06/2018,"10,702.40","10,702.40","12,842.88"
600060,Airport,Operational Services,Infrastructure and Planning,43532,Professional Fees - Other,Cornwall Airport Limited,Newquay Airport ATE support & equipment contract,2254484 , 07/06/2018,"4,250.00","4,250.00","5,100.00"
600060,Airport,Operational Services,Infrastructure and Planning,43532,Professional Fees - Other,Civil Aviation Authority,CAA Licence. Approach/ Tower/ Fire/ Radio/information Customer No 803,2228655 , 10/05/2018,"8,550.00","8,550.00","8,550.00"
600060,Airport,Operational Services,Infrastructure and Planning,43532,Professional Fees - Other,Civil Aviation Authority,CAA Licence. Approach/ Tower/ Fire/ Radio/information Customer No 803,2228553 , 08/05/2018,"5,551.00","5,551.00","5,551.00"
600060,Airport,Operational Services,Infrastructure and Planning,22002,Electricity,British Gas Business,Old Town Pumping Station,2217955 , 27/04/2018,507.04,507.04,608.44
600060,Airport,Operational Services,Infrastructure and Planning,22002,Electricity,British Gas Business,Old Town Pumping Station,2217952 , 27/04/2018,644.18,644.18,773.01
600060,Airport,Operational Services,Infrastructure and Planning,49002,Miscellaneous Expenditure,Angus Fire Limited,10 x 20L Foam,2254501 , 07/06/2018,536.00,536.00,643.20
600060,Airport,Operational Services,Infrastructure and Planning,31602,Air Travel,RBS Commercial Card Division,25-05-2018|7377|WWW.ISLEOFSCILLY-TRAVE|TR21 0LJ|4411|FLIGHTS TO MAINLAND FOR RFFS APPLIANCE FACTORY VISIT|,2267241 , 28/06/2018,672.00,"11,613.45","11,860.37"
600100,Adult Social Care,Adult Social Care,Community,41101,Office Equipment,Lloyds Tsb,Lloyds Bank March 18 statement IOS,2206615 , 20/04/2018,619.00,"1,956.88","2,266.67"
600100,Adult Social Care,Adult Social Care,Community,46118,Freight Costs,Isles Of Scilly Steamship Co,Freight Delivery for ASC,2210919 , 24/04/2018,18.19,"2,913.30","3,495.99"
600100,Adult Social Care,Adult Social Care,Community,41105,Equipment Operating Lease,Azeus UK Limited,Azeus UK Yr 3 Softwear license annual charge,2228730 , 15/05/2018,"9,757.79","19,515.58","23,418.70"
600100,Adult Social Care,Adult Social Care,Community,41105,Equipment Operating Lease,Azeus UK Limited,Azeus UK Yr 3 Softwear license annual charge,2228730 , 15/05/2018,"-11,709.35","19,515.58","23,418.70"
600100,Adult Social Care,Adult Social Care,Community,41105,Equipment Operating Lease,Azeus UK Limited,Azeus UK Yr 3 Softwear license annual charge,2228730 , 15/05/2018,"11,709.35","19,515.58","23,418.70"
600101,Better Care Fund,Adult Social Care,Community,31603,Other Public Transport,Tresco Estate,"Concessionary Fares single tickets for Bryher, Tresco & St. Martins, 1st April 2018 - 31st March 2019",2231185 , 24/05/2018,"1,505.50","1,505.50","1,505.50"
600101,Better Care Fund,Adult Social Care,Community,31603,Other Public Transport,Tresco Estate,"Concessionary Fare tickets for Bryher and Tresco, March 2018",2195925 , 12/06/2018,"1,352.00","1,352.00","1,352.00"
600101,Better Care Fund,Adult Social Care,Community,31603,Other Public Transport,Tresco Estate,"Concessionary Fares single tickets for Bryher, Tresco & St. Martins, 1st April 2018 - 31st March 2019",2254545 , 07/06/2018,"1,276.50","1,276.50","1,276.50"
600101,Better Care Fund,Adult Social Care,Community,57066,Independent Meals at Home - Private Contractors,Cornwall Partnership NHS Foundation Trust,Provision of Meals on Wheels March 2018,2213143 , 26/04/2018,"1,000.00","1,000.00","1,200.00"
600103,Short and Long Term Support 18-64,Adult Social Care,Community,Redacted,Redacted - personal information,Redacted - personal information,Redacted - personal information,2263315 , 19/06/2018,"3,407.14","3,407.14","3,407.14"
600103,Short and Long Term Support 18-64,Adult Social Care,Community,Redacted,Redacted - personal information,Redacted - personal information,Redacted - personal information,2263319 , 19/06/2018,"3,520.71","3,520.71","3,520.71"
600104,Short and Long Term Support 65,Adult Social Care,Community,Redacted,Redacted - personal information,Redacted - personal information,Redacted - personal information,2217779 , 01/05/2018,"3,520.71","3,520.71","3,520.71"
600104,Short and Long Term Support 65,Adult Social Care,Community,Redacted,Redacted - personal information,Redacted - personal information,Redacted - personal information,2213140 , 24/04/2018,"3,180.00","3,180.00","3,180.00"
600104,Short and Long Term Support 65,Adult Social Care,Community,57006,Rent in Advance / Deposits - Private Contractors,Cornwall Partnership NHS Foundation Trust,Provision of Meals on Wheels Feb 2018. Total number of meals @ 4.00 each = 185,2185014 , 05/04/2018,740.00,740.00,888.00
600104,Short and Long Term Support 65,Adult Social Care,Community,57066,Independent Meals at Home - Private Contractors,Cornwall Partnership NHS Foundation Trust,"Provision of Meals on Wheels for the period of 1st April 2018-31st March 2019, Meals @ 4 each, estimate of 850.00 per month before VAT.",2258975 , 19/06/2018,876.00,876.00,"1,051.20"
600105,Park House,Adult Social Care,Community,12301,Training,Truro And Penwith College,Truro College fees for Diploma in Health and Social Care for England for Park House staff.,2264549 , 26/06/2018,800.00,800.00,800.00
600105,Park House,Adult Social Care,Community,31603,Other Public Transport,Tresco Estate,Park House Carer Bryher to St Marys and return Jan 2018,2210991 , 24/04/2018,"1,592.35","1,592.35","1,592.35"
600105,Park House,Adult Social Care,Community,45105,Telephone Usage,The Phone Co-Op Ltd,phone charges,2204683 , 10/04/2018,2.41,"1,485.05","1,782.06"
600105,Park House,Adult Social Care,Community,45105,Telephone Usage,The Phone Co-Op Ltd,phone charges,2204683 , 10/04/2018,25.99,"1,485.05","1,782.06"
600105,Park House,Adult Social Care,Community,45215,Internet/Broadband charges,The Phone Co-Op Ltd,phone charges,2204683 , 10/04/2018,36.00,"1,485.05","1,782.06"
600105,Park House,Adult Social Care,Community,22001,Heating Oil,Sibleys Fuel & Marine Services,White oil for Park House - April 2018,2235980 , 21/06/2018,747.13,"3,606.43","3,947.54"
600105,Park House,Adult Social Care,Community,31204,Derv Purchases,Sibleys Fuel & Marine Services,Fuel for PH car,2235980 , 21/06/2018,43.40,"3,606.43","3,947.54"
600105,Park House,Adult Social Care,Community,31204,Derv Purchases,Sibleys Fuel & Marine Services,Fuel for PH car,2235980 , 21/06/2018,-36.19,"3,606.43","3,947.54"
600105,Park House,Adult Social Care,Community,31204,Derv Purchases,Sibleys Fuel & Marine Services,Fuel for PH car,2235980 , 21/06/2018,36.19,"3,606.43","3,947.54"
600105,Park House,Adult Social Care,Community,31204,Derv Purchases,Sibleys Fuel & Marine Services,Fuel for PH car,2235980 , 21/06/2018,40.59,"3,606.43","3,947.54"
600105,Park House,Adult Social Care,Community,22001,Heating Oil,Sibleys Fuel & Marine Services,White oil for Park House - April 2018,2205310 , 01/05/2018,295.11,"2,003.50","2,251.30"
600105,Park House,Adult Social Care,Community,73406,Fuel Exp,Sibleys Fuel & Marine Services,"Fuel for Park House Car
April 18 - March 19",2257361 , 26/06/2018,41.96,"4,586.28","4,989.71"
600105,Park House,Adult Social Care,Community,73406,Fuel Exp,Sibleys Fuel & Marine Services,"Fuel for Park House Car
April 18 - March 19",2257361 , 26/06/2018,"1,240.16","4,586.28","4,989.71"
600105,Park House,Adult Social Care,Community,73406,Fuel Exp,Sibleys Fuel & Marine Services,"Fuel for Park House Car
April 18 - March 19",2257361 , 26/06/2018,-484.34,"4,586.28","4,989.71"
600105,Park House,Adult Social Care,Community,73406,Fuel Exp,Sibleys Fuel & Marine Services,"Fuel for Park House Car
April 18 - March 19",2257361 , 26/06/2018,-41.96,"4,586.28","4,989.71"
600105,Park House,Adult Social Care,Community,73406,Fuel Exp,Sibleys Fuel & Marine Services,"Fuel for Park House Car
April 18 - March 19",2257361 , 26/06/2018,-755.82,"4,586.28","4,989.71"
600105,Park House,Adult Social Care,Community,73406,Fuel Exp,Sibleys Fuel & Marine Services,"Fuel for Park House Car
April 18 - March 19",2257361 , 26/06/2018,484.34,"4,586.28","4,989.71"
600105,Park House,Adult Social Care,Community,73406,Fuel Exp,Sibleys Fuel & Marine Services,"Fuel for Park House Car
April 18 - March 19",2257361 , 26/06/2018,41.96,"4,586.28","4,989.71"
600105,Park House,Adult Social Care,Community,73406,Fuel Exp,Sibleys Fuel & Marine Services,"Fuel for Park House Car
April 18 - March 19",2257361 , 26/06/2018,-526.30,"4,586.28","4,989.71"
600105,Park House,Adult Social Care,Community,73406,Fuel Exp,Sibleys Fuel & Marine Services,"Fuel for Park House Car
April 18 - March 19",2257361 , 26/06/2018,755.82,"4,586.28","4,989.71"
600105,Park House,Adult Social Care,Community,73406,Fuel Exp,Sibleys Fuel & Marine Services,"Fuel for Park House Car
April 18 - March 19",2257361 , 26/06/2018,526.30,"4,586.28","4,989.71"
600105,Park House,Adult Social Care,Community,73406,Fuel Exp,Sibleys Fuel & Marine Services,"Fuel for Park House Car
April 18 - March 19",2257361 , 26/06/2018,"-1,282.12","4,586.28","4,989.71"
600105,Park House,Adult Social Care,Community,73406,Fuel Exp,Sibleys Fuel & Marine Services,"Fuel for Park House Car
April 18 - March 19",2257361 , 26/06/2018,"1,282.12","4,586.28","4,989.71"
600105,Park House,Adult Social Care,Community,49002,Miscellaneous Expenditure,J&P Healthcare LLP,Equipment for Park House.,2265821 , 21/06/2018,806.13,806.13,967.36
600105,Park House,Adult Social Care,Community,46118,Freight Costs,Isles Of Scilly Steamship Co,Freight Delivery for PARK HOUSE,2210919 , 24/04/2018,37.35,"2,913.30","3,495.99"
600105,Park House,Adult Social Care,Community,46118,Freight Costs,Isles Of Scilly Steamship Co,April Invoice for Steamship Company,2236015 , 22/05/2018,28.64,"2,949.69","3,539.63"
600105,Park House,Adult Social Care,Community,46118,Freight Costs,Isles Of Scilly Steamship Co,Feb invoice from Steamship Group,2236005 , 22/05/2018,282.40,"4,799.03","5,758.86"
600113,Early Year Provision,Childrens Services,Community,31603,Other Public Transport,Tresco Estate,TRESCO BOAT SERVICE EY 51270,2205474 , 12/04/2018,"1,574.75","3,138.50","3,138.50"
600113,Early Year Provision,Childrens Services,Community,31603,Other Public Transport,Tresco Estate,TRESCO BOAT SERVICE EY 51270,2205474 , 12/04/2018,"1,563.75","3,138.50","3,138.50"
600113,Early Year Provision,Childrens Services,Community,47001,Grants & Conts to Other Bodies - Non Discretionary,The Five Islands School,Non Discretionary Early Years Provision,2215852 , 26/04/2018,"15,425.08","15,425.08","15,425.08"
600113,Early Year Provision,Childrens Services,Community,47013,Grants & Conts to Other Bodies - Discretionary,Redacted - personal information,2 year old discretionary grant,2187517 , 13/04/2018,254.50,526.75,526.75
600113,Early Year Provision,Childrens Services,Community,47001,Grants & Conts to Other Bodies - Non Discretionary,Redacted - personal information,3 year old non discretionary grant,2187517 , 13/04/2018,272.25,526.75,526.75
600113,Early Year Provision,Childrens Services,Community,47013,Grants & Conts to Other Bodies - Discretionary,Redacted - personal information,Discretionary 2 year old,2215965 , 26/04/2018,193.42,633.86,633.86
600113,Early Year Provision,Childrens Services,Community,47001,Grants & Conts to Other Bodies - Non Discretionary,Redacted - personal information,Non discretionary 3-4 year old,2215965 , 26/04/2018,440.44,633.86,633.86
600113,Early Year Provision,Childrens Services,Community,47013,Grants & Conts to Other Bodies - Discretionary,Redacted - personal information,"Discretionary funding 2 year olds 
Non discretionary funding 3-4 year olds",2205475 , 12/04/2018,223.96,858.48,858.48
600113,Early Year Provision,Childrens Services,Community,47001,Grants & Conts to Other Bodies - Non Discretionary,Redacted - personal information,"Discretionary funding 2 year olds 
Non discretionary funding 3-4 year olds",2205475 , 12/04/2018,634.52,858.48,858.48
600113,Early Year Provision,Childrens Services,Community,47013,Grants & Conts to Other Bodies - Discretionary,Redacted - personal information,,2269528 , 28/06/2018,244.32,723.48,723.48
600113,Early Year Provision,Childrens Services,Community,47001,Grants & Conts to Other Bodies - Non Discretionary,Redacted - personal information,,2269528 , 28/06/2018,479.16,723.48,723.48
600113,Early Year Provision,Childrens Services,Community,47013,Grants & Conts to Other Bodies - Discretionary,Redacted - personal information,EY Grant Discretionary,2246976 , 05/06/2018,500.08,500.08,500.08
600113,Early Year Provision,Childrens Services,Community,47013,Grants & Conts to Other Bodies - Discretionary,Redacted - personal information,EY Grant discretionary,2234097 , 17/05/2018,142.52,679.76,679.76
600113,Early Year Provision,Childrens Services,Community,47001,Grants & Conts to Other Bodies - Non Discretionary,Redacted - personal information,EY Grant non discretionary,2234097 , 17/05/2018,537.24,679.76,679.76
600113,Early Year Provision,Childrens Services,Community,47013,Grants & Conts to Other Bodies - Discretionary,Redacted - personal information,Discretionary funding,2237443 , 22/05/2018,279.95,761.53,761.53
600113,Early Year Provision,Childrens Services,Community,47001,Grants & Conts to Other Bodies - Non Discretionary,Redacted - personal information,Non discretionary funding,2237443 , 22/05/2018,481.58,761.53,761.53
600113,Early Year Provision,Childrens Services,Community,47013,Grants & Conts to Other Bodies - Discretionary,Redacted - personal information,EY Grant discretionary,2254187 , 07/06/2018,397.02,670.48,670.48
600113,Early Year Provision,Childrens Services,Community,47001,Grants & Conts to Other Bodies - Non Discretionary,Redacted - personal information,EY Grant non discretionary,2254187 , 07/06/2018,273.46,670.48,670.48
600113,Early Year Provision,Childrens Services,Community,47013,Grants & Conts to Other Bodies - Discretionary,Redacted - personal information,EY Grant discretionary,2261605 , 19/06/2018,142.52,671.05,671.05
600113,Early Year Provision,Childrens Services,Community,47001,Grants & Conts to Other Bodies - Non Discretionary,Redacted - personal information,EY Grant non discretionary,2261605 , 19/06/2018,528.53,671.05,671.05
600113,Early Year Provision,Childrens Services,Community,47013,Grants & Conts to Other Bodies - Discretionary,Crafti Kids Day Nursery,Discretionary 2 yr old funding,2209188 , 19/04/2018,"1,869.86","1,869.86","1,869.86"
600113,Early Year Provision,Childrens Services,Community,47001,Grants & Conts to Other Bodies - Non Discretionary,Crafti Kids Day Nursery,EY Grant non discretionary,2265884 , 26/06/2018,"2,148.96","2,148.96","2,148.96"
600113,Early Year Provision,Childrens Services,Community,47001,Grants & Conts to Other Bodies - Non Discretionary,Crafti Kids Day Nursery,EY Grant non discretionary,2234918 , 17/05/2018,"3,037.10","3,037.10","3,037.10"
600113,Early Year Provision,Childrens Services,Community,47013,Grants & Conts to Other Bodies - Discretionary,Crafti Kids Day Nursery,EY Grant discretionary,2235088 , 17/05/2018,"2,004.75","2,004.75","2,004.75"
600113,Early Year Provision,Childrens Services,Community,47001,Grants & Conts to Other Bodies - Non Discretionary,Crafti Kids Day Nursery,EY Grant non discretionary,2255136 , 12/06/2018,764.72,764.72,764.72
600113,Early Year Provision,Childrens Services,Community,47001,Grants & Conts to Other Bodies - Non Discretionary,Crafti Kids Day Nursery,Non discretionary 3 year old fund,2210382 , 19/04/2018,781.66,781.66,781.66
600113,Early Year Provision,Childrens Services,Community,47013,Grants & Conts to Other Bodies - Discretionary,Crafti Kids Day Nursery,EY Grant  discretionary,2267283 , 26/06/2018,"1,757.88","1,757.88","1,757.88"
600114,Primary Provision,Childrens Services,Community,47013,Grants & Conts to Other Bodies - Discretionary,St Martins Out Of School Club,Discretionary out of school access primary provision,2213177 , 24/04/2018,884.97,884.97,884.97
600114,Primary Provision,Childrens Services,Community,47013,Grants & Conts to Other Bodies - Discretionary,St Agnes Out Of School Club,Discretionary out of school access primary provision,2213179 , 26/04/2018,786.64,786.64,786.64
600115,Children Centres,Childrens Services,Community,45105,Telephone Usage,The Phone Co-Op Ltd,phone charges,2204683 , 10/04/2018,-7.86,"1,485.05","1,782.06"
600115,Children Centres,Childrens Services,Community,45105,Telephone Usage,The Phone Co-Op Ltd,phone charges,2204683 , 10/04/2018,11.00,"1,485.05","1,782.06"
600115,Children Centres,Childrens Services,Community,45215,Internet/Broadband charges,The Phone Co-Op Ltd,phone charges,2204683 , 10/04/2018,113.00,"1,485.05","1,782.06"
600116,Holiday Activities,Childrens Services,Community,49002,Miscellaneous Expenditure,Non Stop Tri Club,sports coaching,2263267 , 19/06/2018,550.00,550.00,550.00
600117,Five Island School,Childrens Services,Community,47001,Grants & Conts to Other Bodies - Non Discretionary,The Five Islands School,IOSEG School share April 2018,2211206 , 24/04/2018,"210,680.79","210,680.79","210,680.79"
600117,Five Island School,Childrens Services,Community,47001,Grants & Conts to Other Bodies - Non Discretionary,The Five Islands School,Primary PE and Sport Premium. AY2017-18 Term 3,2235962 , 22/05/2018,"7,196.00","240,024.15","240,024.15"
600117,Five Island School,Childrens Services,Community,47001,Grants & Conts to Other Bodies - Non Discretionary,The Five Islands School,IOSEG School share May 2018,2235962 , 22/05/2018,"217,703.49","240,024.15","240,024.15"
600117,Five Island School,Childrens Services,Community,47001,Grants & Conts to Other Bodies - Non Discretionary,The Five Islands School,IOSEG School share June 2018,2262190 , 19/06/2018,"210,680.79","210,680.79","210,680.79"
600119,Post 16 SEND,Childrens Services,Community,Redacted,Redacted - personal information,Redacted - personal information,Redacted - personal information,2231288 , 15/05/2018,748.33,748.33,898.00
600120,Post 16 Travel and Accommodation Grant,Childrens Services,Community,47016,Accomodation Grants,Redacted - personal information,Redacted - personal information,2256747 , 12/06/2018,758.34,758.34,758.34
600120,Post 16 Travel and Accommodation Grant,Childrens Services,Community,47016,Accomodation Grants,Redacted - personal information,Redacted - personal information,2270197 , 28/06/2018,852.69,920.19,920.19
600120,Post 16 Travel and Accommodation Grant,Childrens Services,Community,47017,Travel Grant,Redacted - personal information,Redacted - personal information,2270197 , 28/06/2018,22.50,920.19,920.19
600120,Post 16 Travel and Accommodation Grant,Childrens Services,Community,47017,Travel Grant,Redacted - personal information,Redacted - personal information,2270197 , 28/06/2018,45.00,920.19,920.19
600120,Post 16 Travel and Accommodation Grant,Childrens Services,Community,47016,Accomodation Grants,Redacted - personal information,Redacted - personal information,2249223 , 05/06/2018,517.34,607.34,607.34
600120,Post 16 Travel and Accommodation Grant,Childrens Services,Community,47017,Travel Grant,Redacted - personal information,Redacted - personal information,2249223 , 05/06/2018,45.00,607.34,607.34
600120,Post 16 Travel and Accommodation Grant,Childrens Services,Community,47017,Travel Grant,Redacted - personal information,Redacted - personal information,2249223 , 05/06/2018,45.00,607.34,607.34
600120,Post 16 Travel and Accommodation Grant,Childrens Services,Community,47016,Accomodation Grants,Redacted - personal information,Redacted - personal information,2259335 , 14/06/2018,852.66,897.66,897.66
600120,Post 16 Travel and Accommodation Grant,Childrens Services,Community,47017,Travel Grant,Redacted - personal information,Redacted - personal information,2259335 , 14/06/2018,45.00,897.66,897.66
600120,Post 16 Travel and Accommodation Grant,Childrens Services,Community,47016,Accomodation Grants,Redacted - personal information,Redacted - personal information,2264524 , 21/06/2018,"1,539.36","1,539.36","1,539.36"
600120,Post 16 Travel and Accommodation Grant,Childrens Services,Community,47016,Accomodation Grants,Redacted - personal information,Redacted - personal information,2194260 , 05/04/2018,"1,705.33","1,783.58","1,783.58"
600120,Post 16 Travel and Accommodation Grant,Childrens Services,Community,47017,Travel Grant,Redacted - personal information,Redacted - personal information,2194260 , 05/04/2018,78.25,"1,783.58","1,783.58"
600120,Post 16 Travel and Accommodation Grant,Childrens Services,Community,47016,Accomodation Grants,Redacted - personal information,Redacted - personal information,2254569 , 12/06/2018,"1,705.33","1,773.88","1,773.88"
600120,Post 16 Travel and Accommodation Grant,Childrens Services,Community,47017,Travel Grant,Redacted - personal information,Redacted - personal information,2254569 , 12/06/2018,68.55,"1,773.88","1,773.88"
600120,Post 16 Travel and Accommodation Grant,Childrens Services,Community,47016,Accomodation Grants,Redacted - personal information,Redacted - personal information,2260999 , 19/06/2018,852.66,906.16,906.16
600120,Post 16 Travel and Accommodation Grant,Childrens Services,Community,47017,Travel Grant,Redacted - personal information,Redacted - personal information,2260999 , 19/06/2018,53.50,906.16,906.16
600120,Post 16 Travel and Accommodation Grant,Childrens Services,Community,47016,Accomodation Grants,Redacted - personal information,Redacted - personal information,2195109 , 05/04/2018,852.66,952.66,952.66
600120,Post 16 Travel and Accommodation Grant,Childrens Services,Community,47017,Travel Grant,Redacted - personal information,Redacted - personal information,2195109 , 05/04/2018,100.00,952.66,952.66
600120,Post 16 Travel and Accommodation Grant,Childrens Services,Community,47016,Accomodation Grants,Redacted - personal information,Redacted - personal information,2229948 , 10/05/2018,852.66,852.66,852.66
600120,Post 16 Travel and Accommodation Grant,Childrens Services,Community,47016,Accomodation Grants,Redacted - personal information,Redacted - personal information,2191754 , 13/04/2018,"1,705.33","1,805.33","1,805.33"
600120,Post 16 Travel and Accommodation Grant,Childrens Services,Community,47017,Travel Grant,Redacted - personal information,Redacted - personal information,2191754 , 13/04/2018,100.00,"1,805.33","1,805.33"
600120,Post 16 Travel and Accommodation Grant,Childrens Services,Community,47016,Accomodation Grants,Redacted - personal information,Redacted - personal information,2249376 , 05/06/2018,852.66,852.66,852.66
600120,Post 16 Travel and Accommodation Grant,Childrens Services,Community,47016,Accomodation Grants,Redacted - personal information,Redacted - personal information,2250300 , 05/06/2018,"1,705.33","1,805.33","1,805.33"
600120,Post 16 Travel and Accommodation Grant,Childrens Services,Community,47017,Travel Grant,Redacted - personal information,Redacted - personal information,2250300 , 05/06/2018,100.00,"1,805.33","1,805.33"
600120,Post 16 Travel and Accommodation Grant,Childrens Services,Community,47016,Accomodation Grants,Redacted - personal information,Redacted - personal information,2255123 , 12/06/2018,586.70,586.70,586.70
600120,Post 16 Travel and Accommodation Grant,Childrens Services,Community,47016,Accomodation Grants,Redacted - personal information,Redacted - personal information,2221062 , 03/05/2018,"1,059.70","1,059.70","1,059.70"
600120,Post 16 Travel and Accommodation Grant,Childrens Services,Community,47016,Accomodation Grants,Redacted - personal information,Redacted - personal information,2217975 , 01/05/2018,852.66,910.16,910.16
600120,Post 16 Travel and Accommodation Grant,Childrens Services,Community,47017,Travel Grant,Redacted - personal information,Redacted - personal information,2217975 , 01/05/2018,57.50,910.16,910.16
600120,Post 16 Travel and Accommodation Grant,Childrens Services,Community,47016,Accomodation Grants,Redacted - personal information,Redacted - personal information,2229101 , 10/05/2018,"1,705.33","1,705.33","1,705.33"
600120,Post 16 Travel and Accommodation Grant,Childrens Services,Community,47016,Accomodation Grants,Redacted - personal information,Redacted - personal information,2194445 , 05/04/2018,852.66,852.66,852.66
600120,Post 16 Travel and Accommodation Grant,Childrens Services,Community,47016,Accomodation Grants,Redacted - personal information,Redacted - personal information,2245408 , 05/06/2018,852.66,852.66,852.66
600120,Post 16 Travel and Accommodation Grant,Childrens Services,Community,47016,Accomodation Grants,Redacted - personal information,Redacted - personal information,2194970 , 05/04/2018,852.66,943.66,943.66
600120,Post 16 Travel and Accommodation Grant,Childrens Services,Community,47017,Travel Grant,Redacted - personal information,Redacted - personal information,2194970 , 05/04/2018,91.00,943.66,943.66
600120,Post 16 Travel and Accommodation Grant,Childrens Services,Community,47016,Accomodation Grants,Redacted - personal information,Redacted - personal information,2195003 , 05/04/2018,"1,352.97","1,352.97","1,352.97"
600120,Post 16 Travel and Accommodation Grant,Childrens Services,Community,47016,Accomodation Grants,Redacted - personal information,Redacted - personal information,2231191 , 15/05/2018,534.68,534.68,534.68
600120,Post 16 Travel and Accommodation Grant,Childrens Services,Community,47016,Accomodation Grants,Redacted - personal information,Redacted - personal information,2250233 , 05/06/2018,852.66,852.66,852.66
600120,Post 16 Travel and Accommodation Grant,Childrens Services,Community,47016,Accomodation Grants,Redacted - personal information,Redacted - personal information,2195824 , 05/04/2018,852.66,952.66,952.66
600120,Post 16 Travel and Accommodation Grant,Childrens Services,Community,47017,Travel Grant,Redacted - personal information,Redacted - personal information,2195824 , 05/04/2018,100.00,952.66,952.66
600120,Post 16 Travel and Accommodation Grant,Childrens Services,Community,47016,Accomodation Grants,Redacted - personal information,Redacted - personal information,2232459 , 15/05/2018,840.00,840.00,840.00
600120,Post 16 Travel and Accommodation Grant,Childrens Services,Community,47017,Travel Grant,Redacted - personal information,Redacted - personal information,2232459 , 15/05/2018,0.00,840.00,840.00
600120,Post 16 Travel and Accommodation Grant,Childrens Services,Community,47016,Accomodation Grants,Redacted - personal information,Redacted - personal information,2249121 , 05/06/2018,732.68,732.68,732.68
600120,Post 16 Travel and Accommodation Grant,Childrens Services,Community,47016,Accomodation Grants,Redacted - personal information,Redacted - personal information,2264539 , 21/06/2018,736.70,736.70,736.70
600120,Post 16 Travel and Accommodation Grant,Childrens Services,Community,47016,Accomodation Grants,Redacted - personal information,Redacted - personal information,2211120 , 24/04/2018,85.90,923.30,923.30
600120,Post 16 Travel and Accommodation Grant,Childrens Services,Community,47016,Accomodation Grants,Redacted - personal information,Redacted - personal information,2211120 , 24/04/2018,837.40,923.30,923.30
600120,Post 16 Travel and Accommodation Grant,Childrens Services,Community,47016,Accomodation Grants,Redacted - personal information,Redacted - personal information,2236189 , 22/05/2018,850.00,943.30,943.30
600120,Post 16 Travel and Accommodation Grant,Childrens Services,Community,47017,Travel Grant,Redacted - personal information,Redacted - personal information,2236189 , 22/05/2018,93.30,943.30,943.30
600120,Post 16 Travel and Accommodation Grant,Childrens Services,Community,47016,Accomodation Grants,Redacted - personal information,Redacted - personal information,2236195 , 22/05/2018,852.66,952.66,952.66
600120,Post 16 Travel and Accommodation Grant,Childrens Services,Community,47017,Travel Grant,Redacted - personal information,Redacted - personal information,2236195 , 22/05/2018,100.00,952.66,952.66
600120,Post 16 Travel and Accommodation Grant,Childrens Services,Community,47016,Accomodation Grants,Redacted - personal information,Redacted - personal information,2194977 , 05/04/2018,852.66,952.66,952.66
600120,Post 16 Travel and Accommodation Grant,Childrens Services,Community,47017,Travel Grant,Redacted - personal information,Redacted - personal information,2194977 , 05/04/2018,100.00,952.66,952.66
600120,Post 16 Travel and Accommodation Grant,Childrens Services,Community,47016,Accomodation Grants,Redacted - personal information,Redacted - personal information,2200214 , 10/04/2018,"1,500.00","1,500.00","1,500.00"
600120,Post 16 Travel and Accommodation Grant,Childrens Services,Community,47016,Accomodation Grants,Redacted - personal information,Redacted - personal information,2209563 , 24/04/2018,852.66,852.66,852.66
600120,Post 16 Travel and Accommodation Grant,Childrens Services,Community,47016,Accomodation Grants,Redacted - personal information,Redacted - personal information,2254608 , 12/06/2018,595.89,595.89,595.89
600120,Post 16 Travel and Accommodation Grant,Childrens Services,Community,47016,Accomodation Grants,Redacted - personal information,Redacted - personal information,2211257 , 24/04/2018,"1,705.33","1,883.58","1,883.58"
600120,Post 16 Travel and Accommodation Grant,Childrens Services,Community,47017,Travel Grant,Redacted - personal information,Redacted - personal information,2211257 , 24/04/2018,178.25,"1,883.58","1,883.58"
600120,Post 16 Travel and Accommodation Grant,Childrens Services,Community,47016,Accomodation Grants,Redacted - personal information,Redacted - personal information,2213762 , 24/04/2018,"1,705.33","1,705.33","1,705.33"
600121,Home to School Transport,Childrens Services,Community,31603,Other Public Transport,Tresco Estate,C Servs School Children off islind to St marys and return Jan 2018,2210992 , 24/04/2018,"1,950.00","1,950.00","1,950.00"
600121,Home to School Transport,Childrens Services,Community,31812,Home to School Transport - Volunteer and Other Payments,Tresco Estate,2018 Inv Home To School Travel 51170- Tresco Boating  2018 Home To School Travel TB,2193920 , 05/04/2018,450.00,"2,400.00","2,400.00"
600121,Home to School Transport,Childrens Services,Community,31812,Home to School Transport - Volunteer and Other Payments,Tresco Estate,2018 Inv Home To School Travel 51170- Tresco Boating  2018 Home To School Travel TB,2193920 , 05/04/2018,"1,950.00","2,400.00","2,400.00"
600121,Home to School Transport,Childrens Services,Community,31812,Home to School Transport - Volunteer and Other Payments,Tresco Estate,TRESCO BOAT SERVICES HTS 51263,2206141 , 17/04/2018,"2,300.00","2,900.00","2,900.00"
600121,Home to School Transport,Childrens Services,Community,31812,Home to School Transport - Volunteer and Other Payments,Tresco Estate,TRESCO BOAT SERVICES HTS 51263,2206141 , 17/04/2018,525.00,"2,900.00","2,900.00"
600121,Home to School Transport,Childrens Services,Community,31812,Home to School Transport - Volunteer and Other Payments,Tresco Estate,TRESCO BOAT SERVICES HTS 51263,2206141 , 17/04/2018,75.00,"2,900.00","2,900.00"
600121,Home to School Transport,Childrens Services,Community,31811,Parent Allowances (Home to School Transport),Redacted - personal information,Redacted - personal information,2209629 , 19/04/2018,"1,631.59","1,631.59","1,631.59"
600122,Children Services Staff Costs,Childrens Services,Community,49002,Miscellaneous Expenditure,Tresco Estate,"Tresco Boating EYS Access
April - End of July 2018",2231900 , 15/05/2018,"2,656.25","2,656.25","2,656.25"
600122,Children Services Staff Costs,Childrens Services,Community,49002,Miscellaneous Expenditure,Tresco Estate,"Boating -Home to School &
EY",2207422 , 17/04/2018,"3,138.50","3,138.50","3,138.50"
600122,Children Services Staff Costs,Childrens Services,Community,49002,Miscellaneous Expenditure,Tresco Estate,Tresco Boat Services Home to School Boating April - July 2018,2254487 , 07/06/2018,"3,100.00","3,100.00","3,100.00"
600122,Children Services Staff Costs,Childrens Services,Community,49002,Miscellaneous Expenditure,Tresco Estate,"Tresco Boating EYS Access
April - End of July 2018",2254413 , 12/06/2018,"4,249.00","4,249.00","4,249.00"
600122,Children Services Staff Costs,Childrens Services,Community,49002,Miscellaneous Expenditure,Tresco Estate,"Boating -Home to School &
EY",2208977 , 24/04/2018,"2,900.00","3,055.90","3,055.90"
600122,Children Services Staff Costs,Childrens Services,Community,49002,Miscellaneous Expenditure,Tresco Estate,Tresco Boat Services Home to School Boating April - July 2018,2231200 , 15/05/2018,"1,775.00","2,150.00","2,150.00"
600122,Children Services Staff Costs,Childrens Services,Community,49002,Miscellaneous Expenditure,Tresco Estate,Tresco Boat Services Home to School Boating April - July 2018,2231200 , 15/05/2018,375.00,"2,150.00","2,150.00"
600122,Children Services Staff Costs,Childrens Services,Community,49002,Miscellaneous Expenditure,The Five Islands School,Payroll Re charge for Five islands School Inv 10S1000491,2218664 , 01/05/2018,"23,841.01","23,841.01","23,841.01"
600122,Children Services Staff Costs,Childrens Services,Community,49002,Miscellaneous Expenditure,Isles Of Scilly Travel,Flights 8-9/5/18 OV Meeting,2194582 , 10/04/2018,509.50,509.50,509.50
600122,Children Services Staff Costs,Childrens Services,Community,49002,Miscellaneous Expenditure,Isles Of Scilly Travel,Flights 8-9/5/18 OV Meeting,2209612 , 19/04/2018,539.50,539.50,539.50
600122,Children Services Staff Costs,Childrens Services,Community,49002,Miscellaneous Expenditure,Isles Of Scilly Travel,Flights 8-9/5/18 OV Meeting,2211103 , 24/04/2018,545.70,545.70,545.70
600122,Children Services Staff Costs,Childrens Services,Community,49002,Miscellaneous Expenditure,Isles Of Scilly Travel,Flights 8-9/5/18 OV Meeting,2211103 , 24/04/2018,-60.50,545.70,545.70
600122,Children Services Staff Costs,Childrens Services,Community,49002,Miscellaneous Expenditure,Isles Of Scilly Travel,Flights 8-9/5/18 OV Meeting,2211103 , 24/04/2018,60.50,545.70,545.70
600122,Children Services Staff Costs,Childrens Services,Community,49002,Miscellaneous Expenditure,FFT Education Ltd,Education Services- Annual Subs,2218671 , 01/05/2018,"2,394.86","2,394.86","2,873.83"
600122,Children Services Staff Costs,Childrens Services,Community,49002,Miscellaneous Expenditure,British Youth Council,Subscription for British Youth Council 2018-19,2215799 , 26/04/2018,525.00,525.00,525.00
600123,High Need SEND,Childrens Services,Community,Redacted,Redacted - personal information,Redacted - personal information,Redacted - personal information,2193566 , 05/04/2018,"1,000.00","1,000.00","1,000.00"
600123,High Need SEND,Childrens Services,Community,Redacted,Redacted - personal information,Redacted - personal information,Redacted - personal information,2258885 , 14/06/2018,"54,788.00","54,788.00","54,788.00"
600123,High Need SEND,Childrens Services,Community,Redacted,Redacted - personal information,Redacted - personal information,Redacted - personal information,2193571 , 05/04/2018,"2,025.00","2,897.00","2,897.00"
600123,High Need SEND,Childrens Services,Community,Redacted,Redacted - personal information,Redacted - personal information,Redacted - personal information,2228776 , 10/05/2018,"1,500.00","1,500.00","1,500.00"
600123,High Need SEND,Childrens Services,Community,Redacted,Redacted - personal information,Redacted - personal information,Redacted - personal information,2235962 , 22/05/2018,"15,124.66","240,024.15","240,024.15"
600130,Children Social Care - Strategic,Childrens Social Care,Community,49002,Miscellaneous Expenditure,Sibleys Fuel & Marine Services,Fuel for CSC car,2205310 , 01/05/2018,53.73,"2,003.50","2,251.30"
600130,Children Social Care - Strategic,Childrens Social Care,Community,46108,Board and Lodging,Scilly Hols Ltd,Self catering accommodation for Locum Children's Social Worker.,2204693 , 17/04/2018,"3,110.00","3,110.00","3,110.00"
600130,Children Social Care - Strategic,Childrens Social Care,Community,41201,Office Furniture,Island Carpets,Carpets supplied and fitted to Children's Social Care office.,2221192 , 03/05/2018,800.00,800.00,800.00
600130,Children Social Care - Strategic,Childrens Social Care,Community,11601,Agency Costs,Eden Brown Synergy Ltd,Locum Children�s Social Worker,2195786 , 05/04/2018,"1,129.38","1,129.38","1,355.26"
600130,Children Social Care - Strategic,Childrens Social Care,Community,11601,Agency Costs,Eden Brown Synergy Ltd,Locum Children�s Social Worker,2195789 , 19/04/2018,"1,285.75","1,285.75","1,542.90"
600130,Children Social Care - Strategic,Childrens Social Care,Community,11601,Agency Costs,Eden Brown Synergy Ltd,Agency payment for Locum Children�s Social Worker,2204671 , 03/05/2018,"1,042.50","1,042.50","1,251.00"
600130,Children Social Care - Strategic,Childrens Social Care,Community,11601,Agency Costs,Eden Brown Synergy Ltd,Locum Children�s Social Worker,2195787 , 12/04/2018,"1,285.75","1,285.75","1,542.90"
600130,Children Social Care - Strategic,Childrens Social Care,Community,52001,Payments to Other Local Authorities,Cornwall Council,LADO Fees,2230129 , 24/05/2018,"1,213.23","1,213.23","1,213.23"
600130,Children Social Care - Strategic,Childrens Social Care,Community,43532,Professional Fees - Other,Cornwall Council,Professional Services SEN Professional Services CSC,2193571 , 05/04/2018,872.00,"2,897.00","2,897.00"
600131,Children Social Care - Commissioning,Childrens Social Care,Community,49002,Miscellaneous Expenditure,Scilly Hols Ltd,Accommodation 28th April-3rd May and 7th May-14th May 2018,2218600 , 01/05/2018,"1,160.00","1,160.00","1,160.00"
600131,Children Social Care - Commissioning,Childrens Social Care,Community,62004,Direct Payments,One Off Payments,Ombudsman payment,2189172 , 05/04/2018,"1,755.00","1,755.00","1,755.00"
600131,Children Social Care - Commissioning,Childrens Social Care,Community,11601,Agency Costs,Eden Brown Synergy Ltd,Agency fees for Locum Children's Social Worker,2231773 , 24/05/2018,"1,285.75","1,285.75","1,542.90"
600131,Children Social Care - Commissioning,Childrens Social Care,Community,11601,Agency Costs,Eden Brown Synergy Ltd,Agency fees for Locum Children's Social Worker,2249368 , 05/06/2018,"1,285.75","1,285.75","1,542.90"
600131,Children Social Care - Commissioning,Childrens Social Care,Community,11601,Agency Costs,Eden Brown Synergy Ltd,Agency fees for Locum Children�s Social Worker,2215743 , 26/04/2018,"1,285.75","1,285.75","1,542.90"
600131,Children Social Care - Commissioning,Childrens Social Care,Community,11601,Agency Costs,Eden Brown Synergy Ltd,Agency fee's for Locum Children's Social Worker,2249360 , 21/06/2018,"1,042.50","1,042.50","1,251.00"
600131,Children Social Care - Commissioning,Childrens Social Care,Community,11601,Agency Costs,Eden Brown Synergy Ltd,Agency fees for Locum Children's Social Worker,2249365 , 05/06/2018,"1,042.50","1,042.50","1,251.00"
600131,Children Social Care - Commissioning,Childrens Social Care,Community,11601,Agency Costs,Eden Brown Synergy Ltd,Agency fees for locum children's social worker,2241611 , 07/06/2018,"1,042.50","1,042.50","1,251.00"
600131,Children Social Care - Commissioning,Childrens Social Care,Community,11601,Agency Costs,Eden Brown Synergy Ltd,Agency fees for locum Children�s Social Worker,2215864 , 17/05/2018,764.50,764.50,917.40
600131,Children Social Care - Commissioning,Childrens Social Care,Community,11601,Agency Costs,Eden Brown Synergy Ltd,Agency fees for Locum Children's Social Worker,2241414 , 14/06/2018,764.50,764.50,917.40
600131,Children Social Care - Commissioning,Childrens Social Care,Community,41105,Equipment Operating Lease,Azeus UK Limited,Azeus software Yr 3 annual charge,2228730 , 15/05/2018,"9,757.79","19,515.58","23,418.70"
600131,Children Social Care - Commissioning,Childrens Social Care,Community,41105,Equipment Operating Lease,Azeus UK Limited,Azeus software Yr 3 annual charge,2228730 , 15/05/2018,"19,515.58","19,515.58","23,418.70"
600131,Children Social Care - Commissioning,Childrens Social Care,Community,41105,Equipment Operating Lease,Azeus UK Limited,Azeus software Yr 3 annual charge,2228730 , 15/05/2018,"-11,709.35","19,515.58","23,418.70"
600131,Children Social Care - Commissioning,Childrens Social Care,Community,41105,Equipment Operating Lease,Azeus UK Limited,Azeus software Yr 3 annual charge,2228730 , 15/05/2018,"11,709.35","19,515.58","23,418.70"
600131,Children Social Care - Commissioning,Childrens Social Care,Community,41105,Equipment Operating Lease,Azeus UK Limited,Azeus software Yr 3 annual charge,2228730 , 15/05/2018,"-19,515.58","19,515.58","23,418.70"
600132,S17 Family Support,Childrens Social Care,Community,Redacted,Redacted - personal information,Redacted - personal information,Redacted - personal information,2191794 , 10/04/2018,747.62,747.62,747.62
600133,CSC Short Break Care,Childrens Social Care,Community,Redacted,Redacted - personal information,Redacted - personal information,Redacted - personal information,2234812 , 17/05/2018,"1,000.00","1,000.00","1,000.00"
600133,CSC Short Break Care,Childrens Social Care,Community,Redacted,Redacted - personal information,Redacted - personal information,Redacted - personal information,2234806 , 22/05/2018,"1,000.00","1,000.00","1,000.00"
600140,Public Health,Public Health,Community,91503,Public Heatlh Grant,Cornwall Council,Public Health Service or the Isles of Scilly,2213526 , 03/05/2018,"29,750.00","29,750.00","29,750.00"
600140,Public Health,Public Health,Community,52001,Payments to Other Local Authorities,Cornwall Council,Public Health Contribution to annual Winter Wellbeing Campaign,2191347 , 12/04/2018,"1,000.00","1,000.00","1,000.00"
600141,Community Safety,Community Safety,Community,73423,Training (conducted by CC) Non VATable EXp,Women's Aid,Controlling and Coercive Behaviour Training fees for additional days travelling time and expenses.,2260933 , 19/06/2018,"1,340.50","1,340.50","1,340.50"
600141,Community Safety,Community Safety,Community,43540,Educational Visits,Women's Aid,Controlling and Coercive Behaviour Training fee,2242224 , 07/06/2018,"1,750.00","1,750.00","1,750.00"
600141,Community Safety,Community Safety,Community,55030,Public Health Contracts - VCS,Cornwall Council,IOS Community Safety Partnership contribution to budget for Domestic Abuse and Sexual Violence Services 2017/18,2214123 , 24/04/2018,"5,000.00","5,000.00","5,000.00"
600200,Environmental Health & Food,Environmental Services,Strategic Development and Finance,45217,Annual Licence Software Fees,RH Environmental Ltd,Annual subscription for Riams 10th June 18 - 9th June 19,2270758 , 28/06/2018,600.00,600.00,720.00
600200,Environmental Health & Food,Environmental Services,Strategic Development and Finance,46118,Freight Costs,Isles Of Scilly Steamship Co,Freight Delivery for EVIRN HEALTH,2210919 , 24/04/2018,13.64,"2,913.30","3,495.99"
600200,Environmental Health & Food,Environmental Services,Strategic Development and Finance,46118,Freight Costs,Isles Of Scilly Steamship Co,Feb invoice from Steamship Group,2236005 , 22/05/2018,13.64,"4,799.03","5,758.86"
600200,Environmental Health & Food,Environmental Services,Strategic Development and Finance,45208,IT Software Support,Idox Software Ltd,Full review and scope of data transfer work ahead of a potential transition of Uniform data to a Cornwall Council hosted system. Leading to a full proposal of work.,2225355 , 29/05/2018,632.70,"1,900.00","2,280.00"
600200,Environmental Health & Food,Environmental Services,Strategic Development and Finance,45217,Annual Licence Software Fees,Idox Software Ltd,"6 month extension to IDOX Uniform Hosting 01.04.18 to 30.09.18 (includes Spatially Enabled, Uniform Capital Maintenance & Trading Standards Module Maintenance.",2194930 , 19/04/2018,"1,549.73","3,099.47","3,719.36"
600200,Environmental Health & Food,Environmental Services,Strategic Development and Finance,45217,Annual Licence Software Fees,Idox Software Ltd,3 x Additional licenses for IDOX Uniform system to enable CC access for a 6 month period during migration scoping.,2229236 , 29/05/2018,562.50,"1,125.00","1,350.00"
600200,Environmental Health & Food,Environmental Services,Strategic Development and Finance,49002,Miscellaneous Expenditure,Cornwall Council,Visit of trading standards in October 2017 & admin charge,2267299 , 26/06/2018,78.14,584.22,694.08
600200,Environmental Health & Food,Environmental Services,Strategic Development and Finance,49002,Miscellaneous Expenditure,Cornwall Council,Visit of trading standards in October 2017 & admin charge,2267299 , 26/06/2018,34.90,584.22,694.08
600200,Environmental Health & Food,Environmental Services,Strategic Development and Finance,49002,Miscellaneous Expenditure,Cornwall Council,Visit of trading standards in October 2017 & admin charge,2267299 , 26/06/2018,471.18,584.22,694.08
600210,Adult Education,Learning and  Library,Strategic Development and Finance,31604,Student Travel Expenses - Public Transport,Tresco Estate,Tresco Boat - Return special from St Martins to St Mary's and back to attend First Aid course,2231195 , 17/05/2018,69.50,502.00,502.00
600210,Adult Education,Learning and  Library,Strategic Development and Finance,31806,Travel to Training,Tresco Estate,Boat to/ from Bryher for First Aid Tutor on 19th April,2231195 , 17/05/2018,19.00,502.00,502.00
600210,Adult Education,Learning and  Library,Strategic Development and Finance,45105,Telephone Usage,The Phone Co-Op Ltd,phone charges,2204683 , 10/04/2018,146.05,"1,485.05","1,782.06"
600210,Adult Education,Learning and  Library,Strategic Development and Finance,12301,Training,Lynher Training Group,Chainsaw refresher x 2 plus NPTC assessment,2237352 , 28/06/2018,"1,085.00","1,085.00","1,085.00"
600210,Adult Education,Learning and  Library,Strategic Development and Finance,73401,Training / Course Fees (Conducted by Cormac) Exp,Kaplan Financial,AAT Foundation Level,2198003 , 10/04/2018,821.68,821.68,986.00
600210,Adult Education,Learning and  Library,Strategic Development and Finance,43576,Purchased Training (Not for Staff),In Safe Hands Health & Safety Training & Consultancy Ltd,Emergency first Aid at Work training 18th April 2018,2232468 , 15/05/2018,549.00,549.00,658.80
600210,Adult Education,Learning and  Library,Strategic Development and Finance,12301,Training,ICS Learning Systems,YMCA L2 Gym Instructor Course,2194818 , 10/04/2018,580.00,580.00,580.00
600210,Adult Education,Learning and  Library,Strategic Development and Finance,12301,Training,Essential Training (SW) Ltd,"Park House training week:  Challenging behaviour, nutrition and hydration, Meds Administration and Moving and Handling Train the Trainer",2259918 , 21/06/2018,"1,185.00","1,185.00","1,422.00"
600210,Adult Education,Learning and  Library,Strategic Development and Finance,12301,Training,Essential Training (SW) Ltd,Delivery of Moving and Handling Practical course for Park House staff 26th & 27th July,2259918 , 21/06/2018,"-1,185.00","1,185.00","1,422.00"
600210,Adult Education,Learning and  Library,Strategic Development and Finance,12301,Training,Essential Training (SW) Ltd,Delivery of Moving and Handling Practical course for Park House staff 26th & 27th July,2259918 , 21/06/2018,"1,185.00","1,185.00","1,422.00"
600211,Library Services,Learning and  Library,Strategic Development and Finance,45105,Telephone Usage,The Phone Co-Op Ltd,phone charges,2204683 , 10/04/2018,263.35,"1,485.05","1,782.06"
600211,Library Services,Learning and  Library,Strategic Development and Finance,46118,Freight Costs,Isles Of Scilly Steamship Co,Freight Delivery for LIB,2210919 , 24/04/2018,28.84,"2,913.30","3,495.99"
600211,Library Services,Learning and  Library,Strategic Development and Finance,46118,Freight Costs,Isles Of Scilly Steamship Co,April Invoice for Steamship Company,2236015 , 22/05/2018,50.47,"2,949.69","3,539.63"
600211,Library Services,Learning and  Library,Strategic Development and Finance,46118,Freight Costs,Isles Of Scilly Steamship Co,Feb invoice from Steamship Group,2236005 , 22/05/2018,18.03,"4,799.03","5,758.86"
600212,Customer Hub,Learning and  Library,Strategic Development and Finance,45105,Telephone Usage,The Phone Co-Op Ltd,phone charges,2204683 , 10/04/2018,15.99,"1,485.05","1,782.06"
600212,Customer Hub,Learning and  Library,Strategic Development and Finance,45105,Telephone Usage,The Phone Co-Op Ltd,phone charges,2204683 , 10/04/2018,22.00,"1,485.05","1,782.06"
600212,Customer Hub,Learning and  Library,Strategic Development and Finance,45215,Internet/Broadband charges,The Phone Co-Op Ltd,phone charges,2204683 , 10/04/2018,89.00,"1,485.05","1,782.06"
600212,Customer Hub,Learning and  Library,Strategic Development and Finance,46118,Freight Costs,Isles Of Scilly Steamship Co,Freight Delivery for OSS,2210919 , 24/04/2018,17.02,"2,913.30","3,495.99"
600212,Customer Hub,Learning and  Library,Strategic Development and Finance,46118,Freight Costs,Isles Of Scilly Steamship Co,April Invoice for Steamship Company,2236015 , 22/05/2018,74.44,"2,949.69","3,539.63"
600212,Customer Hub,Learning and  Library,Strategic Development and Finance,46118,Freight Costs,Isles Of Scilly Steamship Co,Feb invoice from Steamship Group,2236005 , 22/05/2018,51.15,"4,799.03","5,758.86"
600212,Customer Hub,Learning and  Library,Strategic Development and Finance,43501,External Testing & Analysis,Francotyp-Postalia Limited,Teleset postage - April 18,2210371 , 20/04/2018,12.00,512.00,514.40
600212,Customer Hub,Learning and  Library,Strategic Development and Finance,43501,External Testing & Analysis,Francotyp-Postalia Limited,Teleset postage - April 18,2210371 , 20/04/2018,500.00,512.00,514.40
600220,IFCA,Inshore Fisheries and Conservation Authoirutues,Strategic Development and Finance,43907,Website Development,Toolkit Websites Ltd,vat,2249277 , 05/06/2018,299.00,"1,794.00","1,794.00"
600220,IFCA,Inshore Fisheries and Conservation Authoirutues,Strategic Development and Finance,43907,Website Development,Toolkit Websites Ltd,Responsive redesign & website design,2249277 , 05/06/2018,"1,495.00","1,794.00","1,794.00"
600220,IFCA,Inshore Fisheries and Conservation Authoirutues,Strategic Development and Finance,31102,Vehicle Repair and Maintenance,South'Ard Engineering,SCREWDRIVER STUBBY SLOT,2214190 , 24/04/2018,"1,918.29","1,918.29","2,301.95"
600220,IFCA,Inshore Fisheries and Conservation Authoirutues,Strategic Development and Finance,31102,Vehicle Repair and Maintenance,South'Ard Engineering,SCREWDRIVER STUBBY SLOT,2214186 , 24/04/2018,"1,450.80","1,450.80","1,740.97"
600220,IFCA,Inshore Fisheries and Conservation Authoirutues,Strategic Development and Finance,12301,Training,Securewest International Ltd,Course for standards of certification and watchkeeping,2211209 , 24/04/2018,691.67,691.67,830.00
600220,IFCA,Inshore Fisheries and Conservation Authoirutues,Strategic Development and Finance,44004,Insurance Premiums - Marine,Lime Street Insurance Brokers Ltd,Insurance for the Isles of Scilly IFCA 2/4/18 to 2/4/19,2209137 , 19/04/2018,"3,066.56","3,066.56","3,066.56"
600220,IFCA,Inshore Fisheries and Conservation Authoirutues,Strategic Development and Finance,89202,Legal Fees & Expenses,Feusik Assessment Services Ltd,For investigations for ongoing Legal Case's,2256486 , 12/06/2018,"1,178.10","1,178.10","1,413.72"
600220,IFCA,Inshore Fisheries and Conservation Authoirutues,Strategic Development and Finance,89202,Legal Fees & Expenses,Feusik Assessment Services Ltd,Gathering information etc for evidence for a prosecution case,2237548 , 22/05/2018,"2,224.32","2,224.32","2,669.19"
600220,IFCA,Inshore Fisheries and Conservation Authoirutues,Strategic Development and Finance,12601,Professional subscriptions,Cefas,Renewal quotation for: XAT Remote access service for the Marine Control Surveillance system (MCSS) Ref:- XAT18C,2241282 , 14/06/2018,"1,050.00","1,050.00","1,260.00"
600220,IFCA,Inshore Fisheries and Conservation Authoirutues,Strategic Development and Finance,94518,Other Income,Cefas,Modelling dispersal of spiny lobster (additional work),2195128 , 17/04/2018,"-2,139.00","2,139.00","2,566.80"
600220,IFCA,Inshore Fisheries and Conservation Authoirutues,Strategic Development and Finance,94518,Other Income,Cefas,Modelling dispersal of spiny lobster (additional work),2195128 , 17/04/2018,"2,139.00","2,139.00","2,566.80"
600220,IFCA,Inshore Fisheries and Conservation Authoirutues,Strategic Development and Finance,43532,Professional Fees - Other,Cefas,Modelling dispersal of spiny lobster (additional work),2195128 , 17/04/2018,"2,139.00","2,139.00","2,566.80"
600220,IFCA,Inshore Fisheries and Conservation Authoirutues,Strategic Development and Finance,47002,Subscriptions,Association Of Ifcas,Membership contribution for the association of IFCAs 2018/19,2237665 , 22/05/2018,"12,000.00","12,000.00","14,400.00"
600230,Capital Development & Procurement Team,Capital Development and Procurement,Strategic Development and Finance,49002,Miscellaneous Expenditure,Sibleys Fuel & Marine Services,Fuel for the Month of March 2018 for Repair & Maintenance,2235980 , 21/06/2018,5.67,"3,606.43","3,947.54"
600230,Capital Development & Procurement Team,Capital Development and Procurement,Strategic Development and Finance,49002,Miscellaneous Expenditure,Sibleys Fuel & Marine Services,Fuel for the Month of March 2018 for Repair & Maintenance,2235980 , 21/06/2018,-4.76,"3,606.43","3,947.54"
600230,Capital Development & Procurement Team,Capital Development and Procurement,Strategic Development and Finance,49002,Miscellaneous Expenditure,Sibleys Fuel & Marine Services,Fuel for the Month of March 2018 for Repair & Maintenance,2235980 , 21/06/2018,4.76,"3,606.43","3,947.54"
600230,Capital Development & Procurement Team,Capital Development and Procurement,Strategic Development and Finance,49002,Miscellaneous Expenditure,Sibleys Fuel & Marine Services,Fuel for the Month of March 2018 for Repair & Maintenance,2235980 , 21/06/2018,61.68,"3,606.43","3,947.54"
600230,Capital Development & Procurement Team,Capital Development and Procurement,Strategic Development and Finance,49002,Miscellaneous Expenditure,Sibleys Fuel & Marine Services,Fuel for the Month of March 2018 for Repair & Maintenance,2235980 , 21/06/2018,27.42,"3,606.43","3,947.54"
600230,Capital Development & Procurement Team,Capital Development and Procurement,Strategic Development and Finance,49002,Miscellaneous Expenditure,Sibleys Fuel & Marine Services,Fuel for the Month of March 2018 for Repair & Maintenance,2235980 , 21/06/2018,37.50,"3,606.43","3,947.54"
600230,Capital Development & Procurement Team,Capital Development and Procurement,Strategic Development and Finance,49002,Miscellaneous Expenditure,Sibleys Fuel & Marine Services,Fuel for the Month of March 2018 for Repair & Maintenance,2235980 , 21/06/2018,49.31,"3,606.43","3,947.54"
600230,Capital Development & Procurement Team,Capital Development and Procurement,Strategic Development and Finance,49002,Miscellaneous Expenditure,Sibleys Fuel & Marine Services,Fuel for the Month of March 2018 for Repair & Maintenance,2235980 , 21/06/2018,62.36,"3,606.43","3,947.54"
600230,Capital Development & Procurement Team,Capital Development and Procurement,Strategic Development and Finance,49002,Miscellaneous Expenditure,Sibleys Fuel & Marine Services,Fuel for Waste & Recycling for the Month of March 2018,2235980 , 21/06/2018,75.28,"3,606.43","3,947.54"
600230,Capital Development & Procurement Team,Capital Development and Procurement,Strategic Development and Finance,49002,Miscellaneous Expenditure,Sibleys Fuel & Marine Services,Fuel for Waste & Recycling for the Month of March 2018,2235980 , 21/06/2018,75.28,"3,606.43","3,947.54"
600230,Capital Development & Procurement Team,Capital Development and Procurement,Strategic Development and Finance,49002,Miscellaneous Expenditure,Sibleys Fuel & Marine Services,Fuel for Waste & Recycling for the Month of March 2018,2235980 , 21/06/2018,-75.28,"3,606.43","3,947.54"
600230,Capital Development & Procurement Team,Capital Development and Procurement,Strategic Development and Finance,49002,Miscellaneous Expenditure,Sibleys Fuel & Marine Services,Fuel for the Month of March 2018 for Repair & Maintenance,2205310 , 01/05/2018,23.42,"2,003.50","2,251.30"
600230,Capital Development & Procurement Team,Capital Development and Procurement,Strategic Development and Finance,49002,Miscellaneous Expenditure,Sibleys Fuel & Marine Services,Fuel for the Month of March 2018 for Repair & Maintenance,2205310 , 01/05/2018,24.66,"2,003.50","2,251.30"
600230,Capital Development & Procurement Team,Capital Development and Procurement,Strategic Development and Finance,49002,Miscellaneous Expenditure,Sibleys Fuel & Marine Services,Fuel for Waste & Recycling for the Month of March 2018,2205310 , 01/05/2018,65.50,"2,003.50","2,251.30"
600230,Capital Development & Procurement Team,Capital Development and Procurement,Strategic Development and Finance,49002,Miscellaneous Expenditure,Sibleys Fuel & Marine Services,Fuel for the Month of March 2018 for Repair & Maintenance,2205310 , 01/05/2018,69.15,"2,003.50","2,251.30"
600230,Capital Development & Procurement Team,Capital Development and Procurement,Strategic Development and Finance,49002,Miscellaneous Expenditure,Sibleys Fuel & Marine Services,Fuel for the Month of March 2018 for Repair & Maintenance,2205310 , 01/05/2018,35.44,"2,003.50","2,251.30"
600230,Capital Development & Procurement Team,Capital Development and Procurement,Strategic Development and Finance,49002,Miscellaneous Expenditure,Sibleys Fuel & Marine Services,Fuel for the Month of March 2018 for Repair & Maintenance,2205310 , 01/05/2018,13.08,"2,003.50","2,251.30"
600230,Capital Development & Procurement Team,Capital Development and Procurement,Strategic Development and Finance,49002,Miscellaneous Expenditure,Sibleys Fuel & Marine Services,Fuel for the Month of March 2018 for Repair & Maintenance,2205310 , 01/05/2018,84.22,"2,003.50","2,251.30"
600230,Capital Development & Procurement Team,Capital Development and Procurement,Strategic Development and Finance,49002,Miscellaneous Expenditure,Sibleys Fuel & Marine Services,Fuel for Waste & Recycling for the Month of March 2018,2205310 , 01/05/2018,86.42,"2,003.50","2,251.30"
600230,Capital Development & Procurement Team,Capital Development and Procurement,Strategic Development and Finance,49002,Miscellaneous Expenditure,Sibleys Fuel & Marine Services,Fuel for the Month of March 2018 for Repair & Maintenance,2205310 , 01/05/2018,11.33,"2,003.50","2,251.30"
600230,Capital Development & Procurement Team,Capital Development and Procurement,Strategic Development and Finance,49002,Miscellaneous Expenditure,Sibleys Fuel & Marine Services,Oil for the Pool,2205310 , 01/05/2018,724.20,"2,003.50","2,251.30"
600230,Capital Development & Procurement Team,Capital Development and Procurement,Strategic Development and Finance,49002,Miscellaneous Expenditure,Sibleys Fuel & Marine Services,Fuel for the Month of March 2018 for Repair & Maintenance,2205310 , 01/05/2018,41.10,"2,003.50","2,251.30"
600230,Capital Development & Procurement Team,Capital Development and Procurement,Strategic Development and Finance,49002,Miscellaneous Expenditure,Sibleys Fuel & Marine Services,Fuel for Waste & Recycling for the Month of March 2018,2205310 , 01/05/2018,57.43,"2,003.50","2,251.30"
600230,Capital Development & Procurement Team,Capital Development and Procurement,Strategic Development and Finance,49002,Miscellaneous Expenditure,Sibleys Fuel & Marine Services,Fuel for the Month of March 2018 for Repair & Maintenance,2205310 , 01/05/2018,90.55,"2,003.50","2,251.30"
600230,Capital Development & Procurement Team,Capital Development and Procurement,Strategic Development and Finance,49002,Miscellaneous Expenditure,Sibleys Fuel & Marine Services,Fuel for Waste & Recycling for the Month of March 2018,2205310 , 01/05/2018,73.97,"2,003.50","2,251.30"
600230,Capital Development & Procurement Team,Capital Development and Procurement,Strategic Development and Finance,49002,Miscellaneous Expenditure,Sibleys Fuel & Marine Services,Fuel for Waste & Recycling for the Month of March 2018,2205310 , 01/05/2018,41.10,"2,003.50","2,251.30"
600230,Capital Development & Procurement Team,Capital Development and Procurement,Strategic Development and Finance,49002,Miscellaneous Expenditure,Sibleys Fuel & Marine Services,Fuel for Waste & Recycling for the Month of March 2018,2205310 , 01/05/2018,36.12,"2,003.50","2,251.30"
600230,Capital Development & Procurement Team,Capital Development and Procurement,Strategic Development and Finance,49002,Miscellaneous Expenditure,Sibleys Fuel & Marine Services,Fuel for the Month of March 2018 for Repair & Maintenance,2257361 , 26/06/2018,434.05,"4,586.28","4,989.71"
600230,Capital Development & Procurement Team,Capital Development and Procurement,Strategic Development and Finance,49002,Miscellaneous Expenditure,Sibleys Fuel & Marine Services,Fuel for the Month of March 2018 for Repair & Maintenance,2257361 , 26/06/2018,-434.05,"4,586.28","4,989.71"
600230,Capital Development & Procurement Team,Capital Development and Procurement,Strategic Development and Finance,49002,Miscellaneous Expenditure,Sibleys Fuel & Marine Services,Fuel for the Month of March 2018 for Repair & Maintenance,2257361 , 26/06/2018,434.05,"4,586.28","4,989.71"
600230,Capital Development & Procurement Team,Capital Development and Procurement,Strategic Development and Finance,47013,Grants & Conts to Other Bodies - Discretionary,Community Venture (Smart Islands Project),Smart Islands Project Funding,2210984 , 24/04/2018,875.00,875.00,875.00
600230,Capital Development & Procurement Team,Capital Development and Procurement,Strategic Development and Finance,43506,Professional Fees - Legal,Ashfords,Rent (5/2/18 - 25/3/18),2195185 , 26/04/2018,"4,683.00","4,683.00","5,619.60"
600230,Capital Development & Procurement Team,Capital Development and Procurement,Strategic Development and Finance,43506,Professional Fees - Legal,Ashfords,FOR WORK UNDERTAKEN ON THE FUNDING FLOW DOWN,2212338 , 26/04/2018,"2,688.00","2,688.00","3,225.60"
600240,Social Housing,Housing Rented Property and Homelessness,Strategic Development and Finance,21101,R&M - Buildings - Planned,Wright Construction,THE STRAND CONTRACTED WORKS - INSTALMENT 3,2231383 , 15/05/2018,"34,476.63","34,476.63","41,371.95"
600240,Social Housing,Housing Rented Property and Homelessness,Strategic Development and Finance,49002,Miscellaneous Expenditure,Ward Williams Associates,SITE INSPECTIONS FOR THE STRAND REFURBISHMENT,2209142 , 26/04/2018,993.75,993.75,"1,192.50"
600240,Social Housing,Housing Rented Property and Homelessness,Strategic Development and Finance,21101,R&M - Buildings - Planned,The Granite Man,"Refurbishment, as per specification minus deductions, Electrical",2200172 , 10/04/2018,"3,948.00","19,740.00","22,503.60"
600240,Social Housing,Housing Rented Property and Homelessness,Strategic Development and Finance,21101,R&M - Buildings - Planned,The Granite Man,"Refurbishment, as per specification minus deductions, Electrical",2200172 , 10/04/2018,"15,792.00","19,740.00","22,503.60"
600240,Social Housing,Housing Rented Property and Homelessness,Strategic Development and Finance,12301,Training,Shelter Training(111313),HOUSING LAW AND ADVICE TRAINING X 2,2263090 , 19/06/2018,"1,240.00","1,240.00","1,488.00"
600240,Social Housing,Housing Rented Property and Homelessness,Strategic Development and Finance,46119,Haulage Costs,Richard Hand Haulage,Transportation of Furniture etc to storage,2211061 , 24/04/2018,998.00,998.00,"1,197.60"
600240,Social Housing,Housing Rented Property and Homelessness,Strategic Development and Finance,22501,Rent,Redacted - personal information,"DISPLACEMENT FEE, WHILE REFURBISHMENT WORKS CONTINUE",2237376 , 22/05/2018,"1,173.00","1,173.00","1,173.00"
600240,Social Housing,Housing Rented Property and Homelessness,Strategic Development and Finance,46118,Freight Costs,Isles Of Scilly Steamship Co,Freight delivery for HOUSING,2210919 , 24/04/2018,102.15,"2,913.30","3,495.99"
600240,Social Housing,Housing Rented Property and Homelessness,Strategic Development and Finance,46118,Freight Costs,Isles Of Scilly Steamship Co,Feb invoice from Steamship Group,2236005 , 22/05/2018,117.18,"4,799.03","5,758.86"
600240,Social Housing,Housing Rented Property and Homelessness,Strategic Development and Finance,41104,Equipment & Plant - Direct Purchase,Flowplant Group Ltd,CARR - CARRIAGE,2180690 , 10/04/2018,35.00,950.00,"1,140.00"
600240,Social Housing,Housing Rented Property and Homelessness,Strategic Development and Finance,41104,Equipment & Plant - Direct Purchase,Flowplant Group Ltd,023239 - KIT OVERHAUL VALVES & DIAPHRAGM 8 CYL 'P' STD PUMP,2180690 , 10/04/2018,915.00,950.00,"1,140.00"
600240,Social Housing,Housing Rented Property and Homelessness,Strategic Development and Finance,41104,Equipment & Plant - Direct Purchase,Flowplant Group Ltd,CARR - CARRIAGE,2180690 , 10/04/2018,-35.00,950.00,"1,140.00"
600240,Social Housing,Housing Rented Property and Homelessness,Strategic Development and Finance,41104,Equipment & Plant - Direct Purchase,Flowplant Group Ltd,023239 - KIT OVERHAUL VALVES & DIAPHRAGM 8 CYL 'P' STD PUMP,2180690 , 10/04/2018,-915.00,950.00,"1,140.00"
600240,Social Housing,Housing Rented Property and Homelessness,Strategic Development and Finance,41104,Equipment & Plant - Direct Purchase,Flowplant Group Ltd,CARR - CARRIAGE,2180690 , 10/04/2018,35.00,950.00,"1,140.00"
600240,Social Housing,Housing Rented Property and Homelessness,Strategic Development and Finance,41104,Equipment & Plant - Direct Purchase,Flowplant Group Ltd,023239 - KIT OVERHAUL VALVES & DIAPHRAGM 8 CYL 'P' STD PUMP,2180690 , 10/04/2018,915.00,950.00,"1,140.00"
600240,Social Housing,Housing Rented Property and Homelessness,Strategic Development and Finance,21110,R&M - Electrical - Planned,Evans Electricals,LABOUR,2210880 , 24/04/2018,528.00,790.25,684.65
600240,Social Housing,Housing Rented Property and Homelessness,Strategic Development and Finance,21110,R&M - Electrical - Planned,Evans Electricals,MATERIALS,2210880 , 24/04/2018,262.25,790.25,684.65
600240,Social Housing,Housing Rented Property and Homelessness,Strategic Development and Finance,21110,R&M - Electrical - Planned,Evans Electricals,FIRST FIX OF ELECTRICAL WORKS,2206617 , 17/04/2018,"1,784.57","1,784.57","1,784.57"
600240,Social Housing,Housing Rented Property and Homelessness,Strategic Development and Finance,22501,Rent,Devon & Cornwall Housing Ltd RENT,Redacted - personal information,2195177 , 05/04/2018,833.14,833.14,833.14
600240,Social Housing,Housing Rented Property and Homelessness,Strategic Development and Finance,21101,R&M - Buildings - Planned,Blackwell Building Services (IoS) Ltd,Contract for Wall reinstatement  - ref: WRSP 180316,2235970 , 07/06/2018,"6,099.95","6,099.95","7,319.94"
600240,Social Housing,Housing Rented Property and Homelessness,Strategic Development and Finance,21101,R&M - Buildings - Planned,Blackwell Building Services (IoS) Ltd,Contract for Wall reinstatement  - ref: WRSP 180316,2266081 , 26/06/2018,"2,844.27","2,844.27","3,413.12"
600241,Private Housing,Housing Rented Property and Homelessness,Strategic Development and Finance,21110,R&M - Electrical - Planned,Redacted - personal information,ASSISTANCE WITH ELECTRICAL WORKS & ASSOCIATED BUILDING WORKS LABOUR ONLY,2200934 , 08/05/2018,"1,760.00","1,760.00","1,408.00"
600241,Private Housing,Housing Rented Property and Homelessness,Strategic Development and Finance,43506,Professional Fees - Legal,One Off Payments,Redacted - personal information,2200342 , 10/04/2018,925.00,925.00,"1,110.00"
600241,Private Housing,Housing Rented Property and Homelessness,Strategic Development and Finance,22501,Rent,Devon & Cornwall Housing Ltd RENT,Redacted - personal information,2200348 , 10/04/2018,"1,666.28","1,666.28","1,666.28"
600241,Private Housing,Housing Rented Property and Homelessness,Strategic Development and Finance,21110,R&M - Electrical - Planned,Davey & Gilbert Ltd,REPAIR & REPLACE UNDERFLOOR HEATING UNIT,2200856 , 10/04/2018,902.97,902.97,"1,083.57"
600242,Housing Staffing,Housing Rented Property and Homelessness,Strategic Development and Finance,49002,Miscellaneous Expenditure,Evans Electricals,2nd fix electrics was on old PO number SD11438,2261276 , 19/06/2018,"2,938.42","2,938.42","2,938.42"
600242,Housing Staffing,Housing Rented Property and Homelessness,Strategic Development and Finance,49002,Miscellaneous Expenditure,Carpet And Homestore - Malcroft Ltd,"Flooring Items - Lino, Glue, Grippers etc for Kitchens and Bathrooms",2194433 , 12/04/2018,664.67,664.67,797.60
600250,Strategic Development SLT,,Strategic Development and Finance,89202,Legal Fees & Expenses,Ashfords,"Remainder of a delivery Partner Agreement between the IOS Council & Hitachi Europe Ltd. in relation to the Go EV Smart Project,.",2228826 , 29/05/2018,"3,956.40","3,956.40","3,956.40"
600250,Strategic Development SLT,,Strategic Development and Finance,89202,Legal Fees & Expenses,Ashfords,"Remainder of a delivery Partner Agreement between the IOS Council & Hitachi Europe Ltd. in relation to the Go EV Smart Project,.",2255101 , 28/06/2018,"1,058.40","1,058.40","1,058.40"
600260,Voucher Scheme,Strategic Development Management,Democrative and Corporate Governance,47013,Grants & Conts to Other Bodies - Discretionary,Stylish Designs Ltd,Project 148: Claim 1 grant payment,2256512 , 12/06/2018,"33,681.71","33,681.71","33,681.71"
600260,Voucher Scheme,Strategic Development Management,Democrative and Corporate Governance,47013,Grants & Conts to Other Bodies - Discretionary,St Agnes Boating,Project 15: Claim 5 grant payment,2253684 , 07/06/2018,"2,360.42","2,360.42","2,360.42"
600260,Voucher Scheme,Strategic Development Management,Democrative and Corporate Governance,49002,Miscellaneous Expenditure,Southern Horizons (UK) Ltd,Summative evaluation for the IOS Voucher Scheme project.,2259839 , 14/06/2018,"6,174.00","6,174.00","7,408.80"
600260,Voucher Scheme,Strategic Development Management,Democrative and Corporate Governance,49002,Miscellaneous Expenditure,Southern Horizons (UK) Ltd,Summative evaluation for the IOS Voucher Scheme project.,2259839 , 14/06/2018,"-7,408.80","6,174.00","7,408.80"
600260,Voucher Scheme,Strategic Development Management,Democrative and Corporate Governance,49002,Miscellaneous Expenditure,Southern Horizons (UK) Ltd,Summative evaluation for the IOS Voucher Scheme project.,2259839 , 14/06/2018,"7,408.80","6,174.00","7,408.80"
600260,Voucher Scheme,Strategic Development Management,Democrative and Corporate Governance,47013,Grants & Conts to Other Bodies - Discretionary,Sibleys Fuel & Marine Services,Project 04: Claim 5 grant payment,2263088 , 19/06/2018,"8,733.28","8,733.28","8,733.28"
600260,Voucher Scheme,Strategic Development Management,Democrative and Corporate Governance,47013,Grants & Conts to Other Bodies - Discretionary,Seven Stones Inn,Project 17:  Claim 1 grant payment,2266078 , 26/06/2018,"33,457.99","33,457.99","33,457.99"
600260,Voucher Scheme,Strategic Development Management,Democrative and Corporate Governance,47013,Grants & Conts to Other Bodies - Discretionary,Scilly Self Catering,Project 84:  Claim 2 grant payment,2266073 , 26/06/2018,"8,911.67","8,911.67","8,911.67"
600260,Voucher Scheme,Strategic Development Management,Democrative and Corporate Governance,47013,Grants & Conts to Other Bodies - Discretionary,Redacted - personal information,Project 120:  Claim 1 grant payment,2266062 , 26/06/2018,"78,969.39","78,969.39","78,969.39"
600260,Voucher Scheme,Strategic Development Management,Democrative and Corporate Governance,47013,Grants & Conts to Other Bodies - Discretionary,Redacted - personal information,160 Claim 1: Grant payment,2253682 , 12/06/2018,"2,052.55","2,052.55","2,052.55"
600260,Voucher Scheme,Strategic Development Management,Democrative and Corporate Governance,47013,Grants & Conts to Other Bodies - Discretionary,Redacted - personal information,Project 51: Claim 4 grant payment,2205238 , 12/04/2018,"2,405.01","2,405.01","2,405.01"
600260,Voucher Scheme,Strategic Development Management,Democrative and Corporate Governance,47013,Grants & Conts to Other Bodies - Discretionary,Redacted - personal information,Project 153: Claim 1 grant payment,2264515 , 19/06/2018,"30,537.00","30,537.00","30,537.00"
600260,Voucher Scheme,Strategic Development Management,Democrative and Corporate Governance,47013,Grants & Conts to Other Bodies - Discretionary,Redacted - personal information,Project 138: Claim 2 grant payment,2194423 , 05/04/2018,"1,829.64","1,829.64","1,829.64"
600260,Voucher Scheme,Strategic Development Management,Democrative and Corporate Governance,47013,Grants & Conts to Other Bodies - Discretionary,Redacted - personal information,Project 27: Claim 5 grant payment,2257321 , 12/06/2018,"1,442.28","1,442.28","1,442.28"
600260,Voucher Scheme,Strategic Development Management,Democrative and Corporate Governance,47013,Grants & Conts to Other Bodies - Discretionary,Islands & Tourism Business Partnership Ltd,Project 83: Claim 2 grant payment,2260920 , 14/06/2018,"5,435.70","5,435.70","5,435.70"
600260,Voucher Scheme,Strategic Development Management,Democrative and Corporate Governance,47013,Grants & Conts to Other Bodies - Discretionary,C.G Ground Works And General Building,Project 164: Claim 1 grant payment,2269451 , 26/06/2018,"6,900.00","6,900.00","6,900.00"
600300,Licensing,Democrative and Corporate Governance,Democrative and Corporate Governance,45208,IT Software Support,Idox Software Ltd,Full review and scope of data transfer work ahead of a potential transition of Uniform data to a Cornwall Council hosted system. Leading to a full proposal of work.,2225355 , 29/05/2018,632.70,"1,900.00","2,280.00"
600303,Corporate Management,Democrative and Corporate Governance,Democrative and Corporate Governance,49002,Miscellaneous Expenditure,South West Councils,South West Councils Membership subscription 2018/19,2239689 , 14/06/2018,"1,414.00","1,414.00","1,696.80"
600303,Corporate Management,Democrative and Corporate Governance,Democrative and Corporate Governance,49002,Miscellaneous Expenditure,Plan Alpha Systems,Website hosting/support (scilly.gov.uk),2211144 , 24/04/2018,"2,200.00","2,200.00","2,640.00"
600303,Corporate Management,Democrative and Corporate Governance,Democrative and Corporate Governance,43548,External Audit Charges,Grant Thornton Ltd,"Fee note in respect of quarter 4 instalment for the 2017-18 external audit, as set out in the Audit fee letter",2265007 , 21/06/2018,"6,782.00","6,782.00","8,138.40"
600303,Corporate Management,Democrative and Corporate Governance,Democrative and Corporate Governance,49002,Miscellaneous Expenditure,Gateway Assure Ltd,"Internal Audit
Q1 2018/19  One quarter of annual fee",2250363 , 05/06/2018,"4,125.00","4,125.00","4,950.00"
600303,Corporate Management,Democrative and Corporate Governance,Democrative and Corporate Governance,43548,External Audit Charges,Gateway Assure Ltd,One quarter of annual audit plan fee (Q2),2231408 , 15/05/2018,"4,125.00","4,125.00","4,950.00"
600305,Members,Democrative and Corporate Governance,Democrative and Corporate Governance,31603,Other Public Transport,Tresco Estate,"Members' boating, 22 April, for Full Council",2231195 , 17/05/2018,8.00,502.00,502.00
600306,Elections,Democrative and Corporate Governance,Democrative and Corporate Governance,49002,Miscellaneous Expenditure,Redacted - personal information,Work done during 2017/18 for the IOS Member Allowances Review.,2269536 , 28/06/2018,"2,499.50","2,499.50","2,499.50"
600307,Healthwatch,Democrative and Corporate Governance,Democrative and Corporate Governance,45105,Telephone Usage,The Phone Co-Op Ltd,phone charges,2204683 , 10/04/2018,1.84,"1,485.05","1,782.06"
600307,Healthwatch,Democrative and Corporate Governance,Democrative and Corporate Governance,45105,Telephone Usage,The Phone Co-Op Ltd,phone charges,2204683 , 10/04/2018,0.73,"1,485.05","1,782.06"
600307,Healthwatch,Democrative and Corporate Governance,Democrative and Corporate Governance,45105,Telephone Usage,The Phone Co-Op Ltd,phone charges,2204683 , 10/04/2018,65.75,"1,485.05","1,782.06"
600307,Healthwatch,Democrative and Corporate Governance,Democrative and Corporate Governance,45105,Telephone Usage,The Phone Co-Op Ltd,phone charges,2204683 , 10/04/2018,13.50,"1,485.05","1,782.06"
600307,Healthwatch,Democrative and Corporate Governance,Democrative and Corporate Governance,45215,Internet/Broadband charges,The Phone Co-Op Ltd,phone charges,2204683 , 10/04/2018,36.00,"1,485.05","1,782.06"
600307,Healthwatch,Democrative and Corporate Governance,Democrative and Corporate Governance,45215,Internet/Broadband charges,The Phone Co-Op Ltd,phone charges,2204683 , 10/04/2018,36.00,"1,485.05","1,782.06"
600307,Healthwatch,Democrative and Corporate Governance,Democrative and Corporate Governance,47013,Grants & Conts to Other Bodies - Discretionary,Healthwatch I.O.S,LOCAL HEALTHWATCH GRANT PAYMENT FOR 2018/19,2194455 , 17/04/2018,"45,507.00","45,507.00","45,507.00"
600310,Active Scilly Staffing Costs,Active Scilly,Democrative and Corporate Governance,43532,Professional Fees - Other,Westech (Sw) Limited,Gym Support,2268478 , 26/06/2018,"1,381.24","1,469.24","1,745.49"
600310,Active Scilly Staffing Costs,Active Scilly,Democrative and Corporate Governance,43532,Professional Fees - Other,Westech (Sw) Limited,Gym Support,2268478 , 26/06/2018,88.00,"1,469.24","1,745.49"
600310,Active Scilly Staffing Costs,Active Scilly,Democrative and Corporate Governance,43532,Professional Fees - Other,Westech (Sw) Limited,Gym Support,2268478 , 26/06/2018,"-1,293.24","1,469.24","1,745.49"
600310,Active Scilly Staffing Costs,Active Scilly,Democrative and Corporate Governance,43532,Professional Fees - Other,Westech (Sw) Limited,Gym Support,2268478 , 26/06/2018,-88.00,"1,469.24","1,745.49"
600310,Active Scilly Staffing Costs,Active Scilly,Democrative and Corporate Governance,43532,Professional Fees - Other,Westech (Sw) Limited,Gym Support,2268478 , 26/06/2018,"1,293.24","1,469.24","1,745.49"
600310,Active Scilly Staffing Costs,Active Scilly,Democrative and Corporate Governance,43532,Professional Fees - Other,Westech (Sw) Limited,Gym Support,2268478 , 26/06/2018,88.00,"1,469.24","1,745.49"
600310,Active Scilly Staffing Costs,Active Scilly,Democrative and Corporate Governance,43532,Professional Fees - Other,Westech (Sw) Limited,Gym Support,2268478 , 26/06/2018,"-1,381.24","1,469.24","1,745.49"
600310,Active Scilly Staffing Costs,Active Scilly,Democrative and Corporate Governance,43532,Professional Fees - Other,Westech (Sw) Limited,Gym Support,2268478 , 26/06/2018,"1,381.24","1,469.24","1,745.49"
600310,Active Scilly Staffing Costs,Active Scilly,Democrative and Corporate Governance,49002,Miscellaneous Expenditure,Sibleys Fuel & Marine Services,Oil for pool,2235980 , 21/06/2018,768.26,"3,606.43","3,947.54"
600312,Sports Hall,Active Scilly,Democrative and Corporate Governance,45105,Telephone Usage,The Phone Co-Op Ltd,phone charges,2204683 , 10/04/2018,22.00,"1,485.05","1,782.06"
600312,Sports Hall,Active Scilly,Democrative and Corporate Governance,22003,Gas,Sibleys Fuel & Marine Services,Gas Bottles for Carn Gwarval,2235980 , 21/06/2018,272.00,"3,606.43","3,947.54"
600312,Sports Hall,Active Scilly,Democrative and Corporate Governance,22003,Gas,Sibleys Fuel & Marine Services,"8 bottles of gas, to heat the water and showers in the sports hall",2257361 , 26/06/2018,544.00,"4,586.28","4,989.71"
600312,Sports Hall,Active Scilly,Democrative and Corporate Governance,22003,Gas,Sibleys Fuel & Marine Services,"8 bottles of gas, to heat the water and showers in the sports hall",2257361 , 26/06/2018,-544.00,"4,586.28","4,989.71"
600312,Sports Hall,Active Scilly,Democrative and Corporate Governance,22003,Gas,Sibleys Fuel & Marine Services,"8 bottles of gas, to heat the water and showers in the sports hall",2257361 , 26/06/2018,544.00,"4,586.28","4,989.71"
600312,Sports Hall,Active Scilly,Democrative and Corporate Governance,22003,Gas,Sibleys Fuel & Marine Services,"8 bottles of gas, to heat the water and showers in the sports hall",2257361 , 26/06/2018,-544.00,"4,586.28","4,989.71"
600312,Sports Hall,Active Scilly,Democrative and Corporate Governance,22003,Gas,Sibleys Fuel & Marine Services,"8 bottles of gas, to heat the water and showers in the sports hall",2257361 , 26/06/2018,544.00,"4,586.28","4,989.71"
600313,Normandy Swimming Pool,Active Scilly,Democrative and Corporate Governance,45105,Telephone Usage,The Phone Co-Op Ltd,phone charges,2204683 , 10/04/2018,90.50,"1,485.05","1,782.06"
600313,Normandy Swimming Pool,Active Scilly,Democrative and Corporate Governance,45105,Telephone Usage,The Phone Co-Op Ltd,phone charges,2204683 , 10/04/2018,49.00,"1,485.05","1,782.06"
600313,Normandy Swimming Pool,Active Scilly,Democrative and Corporate Governance,45215,Internet/Broadband charges,The Phone Co-Op Ltd,phone charges,2204683 , 10/04/2018,88.00,"1,485.05","1,782.06"
600313,Normandy Swimming Pool,Active Scilly,Democrative and Corporate Governance,22001,Heating Oil,Sibleys Fuel & Marine Services,Oil for the Pool,2257361 , 26/06/2018,754.60,"4,586.28","4,989.71"
600313,Normandy Swimming Pool,Active Scilly,Democrative and Corporate Governance,22001,Heating Oil,Sibleys Fuel & Marine Services,Oil for the Pool,2257361 , 26/06/2018,-754.60,"4,586.28","4,989.71"
600313,Normandy Swimming Pool,Active Scilly,Democrative and Corporate Governance,22001,Heating Oil,Sibleys Fuel & Marine Services,Oil for the Pool,2257361 , 26/06/2018,754.60,"4,586.28","4,989.71"
600313,Normandy Swimming Pool,Active Scilly,Democrative and Corporate Governance,43576,Purchased Training (Not for Staff),One Off Payments,103 hours swim lessons,2206107 , 17/04/2018,"1,516.16","1,516.16","1,516.16"
600313,Normandy Swimming Pool,Active Scilly,Democrative and Corporate Governance,22002,Electricity,British Gas Business,Swimming Pool,2217970 , 27/04/2018,944.01,944.01,"1,132.81"
600314,Fitness Centre,Active Scilly,Democrative and Corporate Governance,46118,Freight Costs,Isles Of Scilly Steamship Co,Feb invoice from Steamship Group,2236005 , 22/05/2018,11.87,"4,799.03","5,758.86"
600321,Finance,Support Services,Strategic Development and Finance,45105,Telephone Usage,The Phone Co-Op Ltd,phone charges,2204683 , 10/04/2018,25.00,"1,485.05","1,782.06"
600321,Finance,Support Services,Strategic Development and Finance,45215,Internet/Broadband charges,The Phone Co-Op Ltd,phone charges,2204683 , 10/04/2018,89.00,"1,485.05","1,782.06"
600321,Finance,Support Services,Strategic Development and Finance,43532,Professional Fees - Other,Idox Software Ltd,SET UP OF VPN LINK MOVE TO CORNWALL NETWORK,2232655 , 29/05/2018,"1,900.00","1,900.00","2,280.00"
600321,Finance,Support Services,Strategic Development and Finance,43548,External Audit Charges,Grant Thornton Ltd,Q3 2017/18 instalment for external audit,2210999 , 24/04/2018,"6,782.00","6,782.00","8,138.40"
600321,Finance,Support Services,Strategic Development and Finance,12506,Bike 2 Work Scheme,Cycle Solutions (Cycle to Work) Ltd,May 2018 Despatches,2265020 , 26/06/2018,712.50,712.50,855.00
600321,Finance,Support Services,Strategic Development and Finance,12506,Bike 2 Work Scheme,Cycle Solutions (Cycle to Work) Ltd,Bicycles and safety Equipment,2237320 , 22/05/2018,18.89,714.87,854.06
600321,Finance,Support Services,Strategic Development and Finance,12506,Bike 2 Work Scheme,Cycle Solutions (Cycle to Work) Ltd,Bicycles and safety Equipment,2237320 , 22/05/2018,695.98,714.87,854.06
600321,Finance,Support Services,Strategic Development and Finance,12506,Bike 2 Work Scheme,Cycle Solutions (Cycle to Work) Ltd,Bicycles and safety Equipment,2237320 , 22/05/2018,-714.87,714.87,854.06
600321,Finance,Support Services,Strategic Development and Finance,12506,Bike 2 Work Scheme,Cycle Solutions (Cycle to Work) Ltd,Bicycles and safety Equipment,2237320 , 22/05/2018,714.87,714.87,854.06
600321,Finance,Support Services,Strategic Development and Finance,12506,Bike 2 Work Scheme,Cycle Solutions (Cycle to Work) Ltd,Bicycles and safety Equipment,2237320 , 22/05/2018,-854.06,714.87,854.06
600321,Finance,Support Services,Strategic Development and Finance,12506,Bike 2 Work Scheme,Cycle Solutions (Cycle to Work) Ltd,Bicycles and safety Equipment,2237320 , 22/05/2018,854.06,714.87,854.06
600321,Finance,Support Services,Strategic Development and Finance,12506,Bike 2 Work Scheme,Cycle Solutions (Cycle to Work) Ltd,April 2018 Despatches. Helmets,2237351 , 22/05/2018,35.96,"1,048.44","1,250.94"
600321,Finance,Support Services,Strategic Development and Finance,12506,Bike 2 Work Scheme,Cycle Solutions (Cycle to Work) Ltd,April 2018 Despatches. Bicycles and Safety Equipment,2237351 , 22/05/2018,"1,012.48","1,048.44","1,250.94"
600321,Finance,Support Services,Strategic Development and Finance,12506,Bike 2 Work Scheme,Cycle Solutions (Cycle to Work) Ltd,April 2018 Despatches. Helmets,2237351 , 22/05/2018,-35.96,"1,048.44","1,250.94"
600321,Finance,Support Services,Strategic Development and Finance,12506,Bike 2 Work Scheme,Cycle Solutions (Cycle to Work) Ltd,April 2018 Despatches. Bicycles and Safety Equipment,2237351 , 22/05/2018,"-1,012.48","1,048.44","1,250.94"
600321,Finance,Support Services,Strategic Development and Finance,12506,Bike 2 Work Scheme,Cycle Solutions (Cycle to Work) Ltd,April 2018 Despatches. Bicycles and Safety Equipment,2237351 , 22/05/2018,"1,012.48","1,048.44","1,250.94"
600321,Finance,Support Services,Strategic Development and Finance,12506,Bike 2 Work Scheme,Cycle Solutions (Cycle to Work) Ltd,April 2018 Despatches. Bicycles and Safety Equipment,2237351 , 22/05/2018,"-1,012.48","1,048.44","1,250.94"
600321,Finance,Support Services,Strategic Development and Finance,12506,Bike 2 Work Scheme,Cycle Solutions (Cycle to Work) Ltd,April 2018 Despatches. Helmets,2237351 , 22/05/2018,35.96,"1,048.44","1,250.94"
600321,Finance,Support Services,Strategic Development and Finance,12506,Bike 2 Work Scheme,Cycle Solutions (Cycle to Work) Ltd,April 2018 Despatches. Bicycles and Safety Equipment,2237351 , 22/05/2018,"1,012.48","1,048.44","1,250.94"
600321,Finance,Support Services,Strategic Development and Finance,11413,Pension Payments - Added Years,Cornwall Council,2017/18 Added Years costs for Former employees,2241434 , 14/06/2018,"2,424.84","2,424.84","2,424.84"
600322,Housing Benefit Payments & Overpayments,Support Services,Strategic Development and Finance,63002,Rent Allowances,Duchy Of Cornwall,Redacted - personal information,2195775 , 05/04/2018,913.84,913.84,913.84
600323,Human Resources,Support Services,Strategic Development and Finance,49002,Miscellaneous Expenditure,West Communications Ltd,Replacement of Fibre between the Morwell Porta Cabin and Sports Hall Comms Cabinet.,2213589 , 08/05/2018,"1,080.00","1,080.00","1,296.00"
600324,Information Technology,Support Services,Strategic Development and Finance,43532,Professional Fees - Other,West Communications Ltd,Fibre work and patching,2210990 , 24/04/2018,"1,712.00","1,712.00","2,054.40"
600324,Information Technology,Support Services,Strategic Development and Finance,45215,Internet/Broadband charges,Vodafone re. Cable & Wireless UK,NETWORK PROVIDER 1.1.18-31.3.18,2209037 , 01/05/2018,"4,716.31","4,716.31","5,659.57"
600324,Information Technology,Support Services,Strategic Development and Finance,49002,Miscellaneous Expenditure,Memset Ltd,Contract renewal for modern.gov,2258704 , 14/06/2018,"1,633.80","1,633.80","1,960.56"
600324,Information Technology,Support Services,Strategic Development and Finance,31602,Air Travel,Isles Of Scilly Travel,Return flights for Voicepath Technicians - Ex Nqy 14/5/18 - Ex SCY 16/5/18,2240266 , 14/06/2018,635.07,635.07,635.07
600324,Information Technology,Support Services,Strategic Development and Finance,31602,Air Travel,Isles Of Scilly Travel,Return flights for Voicepath Technicians - Ex Nqy 14/5/18 - Ex SCY 16/5/18,2240266 , 14/06/2018,-635.07,635.07,635.07
600324,Information Technology,Support Services,Strategic Development and Finance,31602,Air Travel,Isles Of Scilly Travel,Return flights for Voicepath Technicians - Ex Nqy 14/5/18 - Ex SCY 16/5/18,2240266 , 14/06/2018,635.07,635.07,635.07
600400,Council Tax Account,Council Tax Account,Strategic Development and Finance,65003,Police Authority Precept,Devon & Cornwall Police Authority,APRIL ISLES OF SCILLY PRECEPT,2229173 , 10/05/2018,"20,794.00","20,794.00","20,794.00"
600400,Council Tax Account,Council Tax Account,Strategic Development and Finance,65003,Police Authority Precept,Devon & Cornwall Police Authority,APRIL ISLES OF SCILLY PRECEPT,2257380 , 12/06/2018,"20,794.00","20,794.00","20,794.00"
600400,Council Tax Account,Council Tax Account,Strategic Development and Finance,65003,Police Authority Precept,Devon & Cornwall Police Authority,APRIL ISLES OF SCILLY PRECEPT,2200955 , 10/04/2018,"20,793.48","20,793.48","20,793.48"
690001,Services to Our Community Directorate,Services to Our Community Directorate,Community,89209,Other Professional Fees,Stride Treglown,SLT Invoice -Com of Stage 5 Construction Inv 17441,2250012 , 05/06/2018,"1,000.00","1,000.00","1,200.00"
690001,Services to Our Community Directorate,Services to Our Community Directorate,Community,43534,Licences,Marine Maritime Organisation,Sea Defence Project MMO Licence (Jan costs),2193886 , 19/04/2018,"1,198.50","1,198.50","1,198.50"
690001,Services to Our Community Directorate,Services to Our Community Directorate,Community,89209,Other Professional Fees,Jacksonhyder Ltd,Jackson Hyder Fees to Dec 2017,2234191 , 17/05/2018,"15,832.66","15,832.66","18,999.19"
690001,Services to Our Community Directorate,Services to Our Community Directorate,Community,57049,CCTV Monitoring Contracts - Private Contractors,Hatchplan Ltd t/a Exjet Services,CCTV works,2193812 , 05/04/2018,"4,843.00","4,843.00","5,811.60"
690002,Infrastructure & Planning Directorate,Infrastructure and Planning Directorate,Infrastructure and Planning,46106,External Legal Exps,SLR Consulting Ltd,KML Clain in relation to legacy waste processing and related adjudication,2218662 , 01/05/2018,"3,433.00","3,433.00","4,119.60"
690002,Infrastructure & Planning Directorate,Infrastructure and Planning Directorate,Infrastructure and Planning,43506,Professional Fees - Legal,Mills & Reeve,Provision of legal services,2205296 , 12/04/2018,"14,781.60","14,781.60","17,737.92"
690002,Infrastructure & Planning Directorate,Infrastructure and Planning Directorate,Infrastructure and Planning,43506,Professional Fees - Legal,Mills & Reeve,Redacted - personal information,2205295 , 26/04/2018,"37,699.46","37,699.46","45,239.35"
690002,Infrastructure & Planning Directorate,Infrastructure and Planning Directorate,Infrastructure and Planning,73432,Workshop Expenditure - Labour Int,Evans Electricals,Labour,2207346 , 17/04/2018,"1,508.00","1,508.00","1,508.00"
690002,Infrastructure & Planning Directorate,Infrastructure and Planning Directorate,Infrastructure and Planning,73432,Workshop Expenditure - Labour Int,Evans Electricals,Labour,2207346 , 17/04/2018,"-1,508.00","1,508.00","1,508.00"
690002,Infrastructure & Planning Directorate,Infrastructure and Planning Directorate,Infrastructure and Planning,73432,Workshop Expenditure - Labour Int,Evans Electricals,Labour,2207346 , 17/04/2018,"1,508.00","1,508.00","1,508.00"
690003,Strategy & Development Directorate,Strategy and Development Directorate,Strategic Development and Finance,89103,New Construction Works,Hitachi Europe Ltd,Smart Energy Islands Project  (deployment of Renewable Energy on the councils Housing Stock),2243511 , 29/05/2018,"195,400.00","195,400.00","195,400.00"
690004,Democratic & Corporate Directorate,Democratic and Corporate Directorate,Corporate,49002,Miscellaneous Expenditure,Voicepath Ltd,cable and patching work at Town Hall and Wesleyan Chapel,2241301 , 24/05/2018,"2,203.75","2,203.75","2,644.50"
